Cogmind - Beta 12 @@@ ROGUE MODE // 2023.04.16 @ 16:04:46 Player: Savant Result: Assimilated 0b10! Performance ------------- Evolutions (9) 4500 Regions Visited (42) 8400 Robots Destroyed (331) 1655 Value Destroyed (23018) 23018 Prototype IDs (192) 3840 Alien Tech Used (8) 1600 Bonus (56538) 56538 TOTAL SCORE: 99551 Bonus ------- High Alert Combat Kills 2407 Follower Combat Kills 28685 Entered Garrisons 2600 Used RIF Installer 7000 Network Hubs Disabled 400 Aligned with FarCom 300 Built Enhanced Grunts 300 A7 Reached Mainframe 300 Scanned by Researcher 500 Destroyed MAIN.C Guards 500 Met MAIN.C 5000 Hacked MAIN.C 300 Destroyed MAIN.C Shell 5000 Used 0b10 Conduit 2000 Win 3000 Friendly Fire -1754 Cogmind --------- Core Integrity 402/1600 Matter 162/300 Energy 466/850 System Corruption 0% Temperature Cool (0) Movement Rolling (150) Ox3 Location 0b10 Command Parts ------- > --- POWER (2) -------- Quantum Reactor Reinforced Quantum Reactor > --- PROPULSION (3) --- Centrium Wheel High-density Centrium Wheel High-density Centrium Wheel > --- UTILITY (17) ----- Experimental Power Amplifier Huge Storage Unit Experimental Core Analyzer Improved Kinecellerator Advanced Weapon Cycler Centrium Medium Armor Plating Improved Remote Shield System Mapper Experimental System Shield Relay Coupler [C] (37) Relay Coupler [Behemoth] (5) Relay Coupler [Proto] (14) Microwarp Drive > --- WEAPON (3) ------- Multirail Tactical Quantum Warhead > --- INVENTORY (25) --- Beam Splitter Antimissile System PSU Rigger Terrabomb Enhanced Nova Cannon Disintegrator Multirail Advanced Remote Datajack Advanced Remote Datajack Peak State ------------ > --- POWER ------------ Quantum Reactor Reinforced Quantum Reactor > --- PROPULSION ------- Centrium Wheel High-density Centrium Wheel High-density Centrium Wheel > --- UTILITY ---------- Experimental Power Amplifier Huge Storage Unit Advanced Weapon Cycler Centrium Medium Armor Plating SHELL Armor Improved Remote Shield System Mapper Experimental System Shield Relay Coupler [C] Relay Coupler [Sentry] Relay Coupler [Specialist] Relay Coupler [Behemoth] Relay Coupler [Proto] Microwarp Drive > --- WEAPON ----------- Heavy Hardcell Cannon Advanced Remote Datajack > --- INVENTORY -------- Centrium Wheel Experimental Core Analyzer Precision Matter Filter Improved Kinecellerator Advanced Weapon Cycler Beam Splitter Antimissile System PSU Rigger Integrity Redistributor Integrity Redistributor Terrabomb Enhanced Nova Cannon Disintegrator Multirail Multirail Tactical Quantum Warhead Advanced Remote Datajack [Rating: 228] Favorites ----------- Power F-cell Engine Engine F-cell Engine Power Core Backup Power VII Reactor Quantum Reactor Propulsion Centrium Wheel Wheel Centrium Wheel Utility Advanced Hacking Suite Device Improved Remote Shield Storage Huge Storage Unit Processor Enhanced Optical Array Hackware Advanced Hacking Suite Protection Hardened Heavy Armor Plating Artifact Microwarp Drive Weapon Advanced Remote Datajack Energy Gun Advanced Beam Rifle Energy Cannon Advanced Plasma Cannon Ballistic Gun Improved Assault Rifle Ballistic Cannon Heavy Hardcell Cannon Launcher Long-range Missile Launcher Special Weapon Advanced Remote Datajack Impact Weapon Impact Mace Slashing Weapon Sigix Broadsword Special Melee Weapon Advanced Datajack Build | -11 -10 -10 -9 -9 -9 -8 -8 -8 -8 -8 -7 -7 -7 -7 -7 -7 -6 -6 -6 -6 -6 -6 -6 -6 -5 -5 -5 -5 -4 -4 -4 -4 -3 -3 -3 -3 -3 -2 -2 -2 -1 -1 ------- Run | Jun Mat Min Mat Min Exi Min Mat Gar Mat Gar Fac Gar Fac Gar Fac Gar Fac Gar Fac Ext Cet Arc Hub Gar Fac Gar Fac Gar Fac Gar Fac Gar Res Gar Res Qua Gar Res Tes Sec Acc Com Slots Evolved 18 | . . . 2 . . . 2 . . . 2 . . . . . 2 . . . . . . . 2 . . . 2 . . . 2 . . . . 2 . . 2 . Power 1 | . . . . . . . . . . . . . . . . . . . . . . . . . . . . . . . . . . . . . . . . . 1 . Propulsion 1 | . . . . . . . . . . . . . . . . . . . . . . . . . . . . . . . . . 1 . . . . . . . . . Utility 15 | . . . 2 . . . 2 . . . 2 . . . . . 2 . . . . . . . 2 . . . 2 . . . 1 . . . . 1 . . 1 . Weapon 1 | . . . . . . . . . . . . . . . . . . . . . . . . . . . . . . . . . . . . . . 1 . . . . Parts Attached 939 | 6 9 4 52 6 3 11 35 20 28 17 24 10 26 15 45 42 35 25 9 3 2 12 14 43 64 13 28 20 25 10 24 18 49 12 15 15 18 7 37 40 15 33 Power 32 | 1 1 1 3 . . 1 1 . . . 1 . . . 2 3 2 . . . . . . . 3 . 1 . . . . . 1 . . . 1 1 3 1 4 1 Engine 19 | 1 1 1 3 . . 1 1 . . . 1 . . . 2 2 1 . . . . . . . 3 . 1 . . . . . 1 . . . . . . . . . Core . | . . . . . . . . . . . . . . . . . . . . . . . . . . . . . . . . . . . . . . . . . . . Reactor 13 | . . . . . . . . . . . . . . . . 1 1 . . . . . . . . . . . . . . . . . . . 1 1 3 1 4 1 Propulsion 45 | 2 1 . 3 . . 2 4 . 3 1 1 . . 1 2 . 4 . . . . . . 2 2 . 2 1 2 . . . 3 1 . . . 1 3 . 2 2 Treads . | . . . . . . . . . . . . . . . . . . . . . . . . . . . . . . . . . . . . . . . . . . . Leg . | . . . . . . . . . . . . . . . . . . . . . . . . . . . . . . . . . . . . . . . . . . . Wheel 45 | 2 1 . 3 . . 2 4 . 3 1 1 . . 1 2 . 4 . . . . . . 2 2 . 2 1 2 . . . 3 1 . . . 1 3 . 2 2 Hover . | . . . . . . . . . . . . . . . . . . . . . . . . . . . . . . . . . . . . . . . . . . . Flight . | . . . . . . . . . . . . . . . . . . . . . . . . . . . . . . . . . . . . . . . . . . . Utility 481 | 1 2 2 17 2 1 4 15 8 7 5 16 4 15 9 17 16 23 18 9 2 2 4 10 15 38 10 15 8 18 8 15 9 20 11 15 11 15 4 16 25 2 17 Device 174 | . . . 4 1 . 2 6 6 3 . 5 . 9 1 7 2 10 12 2 . 1 . 7 8 8 2 2 . 3 2 8 3 6 3 10 2 6 . 7 16 1 9 Storage 13 | 1 1 . 1 . 1 . 1 . 1 . . . 1 . 2 . . . . . . . . . 1 . 1 . . . . . 1 . . 1 . . . . . . Processor 7 | . . . . . . . . . . . . . 1 . . . . . 1 . . . . . 2 . . . . . . . . . . 1 . . . . . 2 Hackware 161 | . . 1 2 . . . 2 1 2 2 7 1 3 6 3 8 6 6 3 1 . 2 2 4 14 5 6 7 8 6 4 5 7 8 2 2 8 3 4 8 . 2 Protection 123 | . 1 1 10 1 . 2 6 1 1 3 4 3 1 2 5 6 7 . 3 1 1 2 1 3 13 3 6 1 7 . 3 1 6 . 3 5 1 1 5 1 1 1 Artifact 3 | . . . . . . . . . . . . . . . . . . . . . . . . . . . . . . . . . . . . . . . . . . 3 Weapon 381 | 2 5 1 29 4 2 4 15 12 18 11 6 6 11 5 24 23 6 7 . 1 . 8 4 26 21 3 10 11 5 2 9 9 25 . . 4 2 1 15 14 7 13 Energy Gun 19 | 1 . . 4 . . . 2 4 4 1 . . . . 1 . 1 . . . . . . . . . . . . . . . . . . . . . 1 . . . Energy Cannon 98 | . . . 9 . . . . . . 2 3 3 5 1 11 2 3 2 . 1 . 1 1 6 7 . 2 1 1 . 2 2 9 . . 2 2 . 5 11 2 2 Ballistic Gun 59 | 1 3 . 5 2 1 2 6 2 6 2 1 1 . 2 2 3 . . . . . . . . 1 2 3 1 1 1 2 2 2 . . . . . . . 1 4 Ballistic Cannon 7 | . . 1 . . . . . . . . . . . . . . . . . . . . . . . . . . . . . . 2 . . . . . 2 . 1 1 Launcher 28 | . 2 . 4 2 . 2 1 3 . . 1 2 . . 2 . . . . . . . 1 3 2 . 1 . . . . . . . . . . . . . . 2 Special Weapon 81 | . . . . . . . . 1 3 3 1 . 4 2 3 8 2 4 . . . 2 2 . 4 1 4 4 2 1 3 3 8 . . 1 . . 5 3 3 4 Impact Weapon 50 | . . . 7 . . . 4 2 5 3 . . . . 4 2 . 1 . . . . . 8 3 . . 3 1 . 1 2 3 . . 1 . . . . . . Slashing Weapon 26 | . . . . . . . 2 . . . . . 2 . 1 8 . . . . . 4 . 2 . . . 2 . . 1 . 1 . . . . 1 2 . . . Piercing Weapon . | . . . . . . . . . . . . . . . . . . . . . . . . . . . . . . . . . . . . . . . . . . . Special Melee Weapon 13 | . . . . . 1 . . . . . . . . . . . . . . . . 1 . 7 4 . . . . . . . . . . . . . . . . . Unidentified Prototypes 35 | . . . 3 . . . 1 . 1 . . . . . . . 2 . . . . . 1 . 7 . . . . . 7 . 1 . 3 2 . . 5 2 . . Corrupted Parts 1 | . . 1 . . . . . . . . . . . . . . . . . . . . . . . . . . . . . . . . . . . . . . . . System Corruption 1 | . . 1 . . . . . . . . . . . . . . . . . . . . . . . . . . . . . . . . . . . . . . . . Parts Lost 42 | . 1 . 3 1 . 1 5 1 . 1 1 3 . . 3 3 . . 1 . . . . 1 2 . 1 . 1 . . . . . . . . . 4 1 2 6 Power 3 | . . . . . . 1 . . . . . . . . . 1 . . . . . . . . . . . . . . . . . . . . . . 1 . . . Propulsion 6 | . 1 . 1 . . . 2 . . 1 . . . . . . . . . . . . . . . . . . . . . . . . . . . . . . . 1 Utility 21 | . . . 1 . . . 2 1 . . 1 2 . . 1 2 . . 1 . . . . . 1 . 1 . 1 . . . . . . . . . 1 1 1 4 Weapon 12 | . . . 1 1 . . 1 . . . . 1 . . 2 . . . . . . . . 1 1 . . . . . . . . . . . . . 2 . 1 1 Highest Loss Streak 4 | . 1 . 2 1 . 1 4 1 . 1 1 2 . . 2 2 . . 1 . . . . 1 1 . 1 . 1 . . . . . . . . . 3 1 2 4 To Critical Strikes . | . . . . . . . . . . . . . . . . . . . . . . . . . . . . . . . . . . . . . . . . . . . Average Slot Usage (%) 93 | . 96 100 99 99 100 100 91 90 90 89 90 83 84 83 83 83 89 93 92 92 93 92 93 86 98 100 99 100 93 94 93 94 94 94 94 98 99 94 97 99 90 88 Engine 5 | . 14 14 10 11 11 11 9 9 9 9 7 7 7 7 7 3 1 6 6 6 6 6 6 6 4 5 4 5 5 5 5 5 3 4 4 4 . . . . . . Wheel 11 | . 27 28 21 22 22 22 17 18 18 18 13 7 7 7 7 7 6 6 6 6 6 6 6 6 10 11 11 11 10 10 10 10 14 14 14 14 14 13 12 13 12 12 Device 5 | . . . 6 11 11 11 6 8 6 9 6 7 8 . 4 1 2 5 6 6 8 6 12 13 1 . . . 2 5 4 4 2 4 3 3 8 8 7 6 1 8 Storage 6 | . 14 14 11 11 11 11 9 9 9 9 7 7 7 7 7 7 6 6 6 6 6 6 6 6 5 5 5 5 5 5 5 5 4 4 4 4 4 4 4 4 4 4 Processor 2 | . . . . . . . . . . . . . 5 . . . . . 6 6 6 6 6 . 4 5 5 5 5 5 5 5 4 4 4 4 4 4 4 4 2 1 Hackware 36 | . . . 15 11 11 11 19 18 20 18 29 24 22 29 32 31 49 46 44 42 40 34 29 31 46 48 49 48 46 41 45 43 44 41 42 42 38 41 45 49 48 38 Protection 8 | . 11 14 11 11 11 11 11 9 9 9 8 12 7 14 7 12 4 6 . 2 4 10 9 7 8 8 7 9 8 9 6 8 9 9 8 12 13 9 5 4 4 4 Energy Cannon 3 | . . . 5 . . . . . . 3 7 8 6 7 6 . 2 3 . 3 6 4 6 4 4 . 2 1 3 5 4 4 2 4 4 2 3 . 4 7 5 2 Ballistic Gun 2 | . 20 25 5 21 16 20 3 6 8 2 4 5 7 1 1 . . . . . . . . . . 8 3 1 . . . 1 . . . . . . . . . 3 Special Weapon 3 | . . . . . . . . . 1 2 2 . . 5 2 5 5 5 6 6 6 2 6 . 3 2 4 2 4 4 4 3 3 4 4 4 4 4 3 4 3 3 Impact Weapon 1 | . . . 2 . . . 7 2 1 2 . . . . 2 6 3 2 6 2 . . . 2 . . . 3 1 . . 1 1 . . 1 . . . . . . Naked Turns . | . . . . . . . . . . . . . . . . . . . . . . . . . . . . . . . . . . . . . . . . . . . Heaviest Build 227 | 13 31 36 65 63 62 63 124 124 124 135 138 138 138 132 132 128 132 112 102 108 108 115 118 134 127 113 115 116 130 139 137 137 137 143 142 204 146 143 151 151 189 227 Greatest Support 56 | 32 32 26 32 32 32 32 32 28 28 28 28 28 28 28 28 28 32 28 28 28 28 28 28 32 32 32 32 32 32 32 32 32 48 48 48 48 48 52 52 52 56 56 Greatest Overweight (x) 6 | . 1 1 3 1 1 1 4 4 4 4 4 4 4 4 4 4 6 3 3 3 3 4 4 4 6 3 3 3 4 4 4 4 2 2 4 4 3 2 4 2 3 4 Average Overweight (x) 2 | . . 1 1 1 1 1 3 4 4 3 3 4 4 4 3 3 3 3 3 3 3 3 3 3 3 3 3 3 3 3 3 3 2 2 2 2 2 2 2 2 3 3 Largest Inventory Capacity 25 | 8 15 15 20 20 20 20 25 25 25 25 25 25 25 25 25 25 25 25 25 25 25 25 25 25 25 25 25 25 25 25 25 25 25 25 25 25 25 25 25 25 25 25 Average Capacity 24 | 7 14 15 17 20 20 20 24 25 25 25 25 25 25 25 25 25 25 25 25 25 25 25 25 25 25 25 25 25 25 25 25 25 25 25 25 25 25 25 25 25 25 25 Most Carried 25 | 2 15 15 20 20 20 20 25 25 25 25 25 25 25 25 25 25 25 25 25 25 25 25 25 25 25 25 25 25 25 25 25 25 25 25 25 25 25 25 25 25 25 25 Average Carried 23 | . 9 14 16 19 19 19 23 24 24 24 22 24 24 24 24 24 24 24 23 24 24 24 24 24 24 24 23 24 24 24 24 24 24 24 24 24 24 24 24 24 24 22 Final Capacity 25 | 8 15 15 20 20 20 20 25 25 25 25 25 25 25 25 25 25 25 25 25 25 25 25 25 25 25 25 25 25 25 25 25 25 25 25 25 25 25 25 25 25 25 25 Final Carried 25 | 2 15 15 19 20 20 20 25 25 25 25 24 25 25 25 25 25 25 25 25 24 25 25 25 25 25 25 25 25 25 25 25 25 24 25 24 25 25 25 24 25 25 10 Class Distribution -------------------- 66% | Botlord-Mutant 14% | Bothacker-Mutant 8% | Hacker-Mutant 8% | Mutant Dominant Class ---------------- Mutant | -10/Materials Mutant | -10/Mines Mutant | -9/Materials Mutant | -9/Mines Mutant | -9/Exiles Mutant | -8/Mines Hacker-Mutant | -8/Materials Hacker-Mutant | -8/Garrison Bothacker-Mutant | -8/Materials Bothacker-Mutant | -8/Garrison Commander-Mutant | -7/Factory Hacker-Mutant | -7/Garrison Bothacker-Mutant | -7/Factory Bothacker-Mutant | -7/Garrison Bothacker-Mutant | -7/Factory Botlord-Mutant | -7/Garrison Botlord-Mutant | -6/Factory Botlord-Mutant | -6/Garrison Botlord-Mutant | -6/Factory Botlord-Mutant | -6/Extension Botlord-Mutant | -6/Cetus Botlord-Mutant | -6/Archives Botlord-Mutant | -6/Hub_04(d) Botlord-Mutant | -6/Garrison Botlord-Mutant | -5/Factory Botlord-Mutant | -5/Garrison Botlord-Mutant | -5/Factory Botlord-Mutant | -5/Garrison Botlord-Mutant | -4/Factory Botlord-Mutant | -4/Garrison Botlord-Mutant | -4/Factory Botlord-Mutant | -4/Garrison Botlord-Mutant | -3/Research Botlord-Mutant | -3/Garrison Botlord-Mutant | -3/Research Botlord-Mutant | -3/Quarantine Botlord-Mutant | -3/Garrison Botlord-Mutant | -2/Research Botlord-Mutant | -2/Testing Botlord-Mutant | -2/Section 7 Botlord-Mutant | -1/Access Botlord-Mutant | -1/Command Resources | -11 -10 -10 -9 -9 -9 -8 -8 -8 -8 -8 -7 -7 -7 -7 -7 -7 -6 -6 -6 -6 -6 -6 -6 -6 -5 -5 -5 -5 -4 -4 -4 -4 -3 -3 -3 -3 -3 -2 -2 -2 -1 -1 ----------- Run | Jun Mat Min Mat Min Exi Min Mat Gar Mat Gar Fac Gar Fac Gar Fac Gar Fac Gar Fac Ext Cet Arc Hub Gar Fac Gar Fac Gar Fac Gar Fac Gar Res Gar Res Qua Gar Res Tes Sec Acc Com Matter Collected 19972 | 157 262 70 701 96 30 310 562 304 564 263 306 458 377 411 660 801 545 440 270 135 42 120 235 498 1695 355 1195 395 620 200 651 541 901 366 440 358 505 150 814 1040 318 811 Remotely . | . . . . . . . . . . . . . . . . . . . . . . . . . . . . . . . . . . . . . . . . . . . Salvage Created 13477 | . 356 . 1645 38 . 382 723 229 999 237 8 388 359 30 1145 429 . 340 28 233 . 136 39 493 552 . 223 302 155 60 19 331 559 124 200 414 356 92 262 326 832 433 Parts 659 | . 32 . 90 5 . 23 37 15 70 20 3 . 10 1 60 13 . 15 . 8 . 15 3 12 32 . 13 6 . 6 2 5 27 11 10 8 26 6 17 19 27 12 Haulers Intercepted 7 | . . . 4 . . . 2 . 1 . . . . . . . . . . . . . . . . . . . . . . . . . . . . . . . . . Recyclers Shooed 5 | . . . . . . . . . . . . . 1 . . . . . . . . . . . . . . . . . 2 . . . . 1 . . . . 1 . Parts Field Recycled . | . . . . . . . . . . . . . . . . . . . . . . . . . . . . . . . . . . . . . . . . . . . Retrieved Matter . | . . . . . . . . . . . . . . . . . . . . . . . . . . . . . . . . . . . . . . . . . . . Parts Self-Destructed . | . . . . . . . . . . . . . . . . . . . . . . . . . . . . . . . . . . . . . . . . . . . Prevented . | . . . . . . . . . . . . . . . . . . . . . . . . . . . . . . . . . . . . . . . . . . . Kills | -11 -10 -10 -9 -9 -9 -8 -8 -8 -8 -8 -7 -7 -7 -7 -7 -7 -6 -6 -6 -6 -6 -6 -6 -6 -5 -5 -5 -5 -4 -4 -4 -4 -3 -3 -3 -3 -3 -2 -2 -2 -1 -1 ------- Run | Jun Mat Min Mat Min Exi Min Mat Gar Mat Gar Fac Gar Fac Gar Fac Gar Fac Gar Fac Ext Cet Arc Hub Gar Fac Gar Fac Gar Fac Gar Fac Gar Res Gar Res Qua Gar Res Tes Sec Acc Com Combat Hostiles Destroyed 297 | . 13 . 30 5 . 13 13 10 19 5 . 43 . 1 20 10 . 6 . 4 . . . 14 6 . 4 4 . 1 . 6 5 2 2 . 5 1 4 4 10 37 Melee 16 | . . . 2 . . . 2 . . . . . . . . 8 . . . . . . . . . . . 1 . . . . . . . . . 1 2 . . . Guns 57 | . 6 . 2 . . 5 6 4 19 2 . 4 . . 5 . . . . . . . . . . . 2 1 . 1 . . . . . . . . . . . . Cannons 83 | . . . 10 . . . . . . 1 . 15 . 1 8 1 . 6 . 2 . . . 4 2 . 2 1 . . . 2 5 2 1 . 5 . 2 3 9 1 AOE 116 | . 7 . 8 5 . 8 5 6 . . . 24 . . 5 . . . . . . . . 9 3 . . . . . . . . . . . . . . . . 36 Classes Destroyed 23 | . 5 . 7 . . . 1 . . . . 1 . . 2 1 . . . . . . . 1 1 . . . . . . . . . 1 . . . . 1 1 1 Worker 10 | . . . 2 . . . . . . . . . . . 1 . . . . . . . . . 2 . 1 . . . . . 1 . . . . . 1 . 1 1 Builder 9 | . . . 2 . . . 1 . . . . . . . 3 . . . 1 . . . . . . . . . . . 1 . . . . . . . . 1 . . Tunneler 4 | . 1 . . . . 1 . . . . 1 . . . . . . . 1 . . . . . . . . . . . . . . . . . . . . . . . Hauler 7 | . . . 4 . . . 2 . 1 . . . . . . . . . . . . . . . . . . . . . . . . . . . . . . . . . Recycler 15 | . . . 1 . . 2 1 . . . . . 3 . . . . . . . . . . . 1 . . . 1 . . . 2 . . 3 . . . . 1 . Carrier 1 | . . . . . . . . . . . . . . . 1 . . . . . . . . . . . . . . . . . . . . . . . . . . . Operator 11 | . 2 . 1 . . . . . . . . . 1 . 1 . . . . . . 4 . . 1 . . . . . . . 1 . . . . . . . . . Watcher 17 | . 3 . 5 . . . 3 . 2 . . . 2 . . . . . . . . . 1 . . . . . . . . . 1 . . . . . . . . . Swarmer 64 | . 9 . 7 5 . 10 . 6 6 1 . . . 1 5 . . . . . . . . 6 . . 2 . . . . 1 1 . . . . . . . . 4 Cutter 5 | . . . . . . . . . . . . . . . . 2 . . . . . . . . . . . . . . . . . 1 . . . . . . . 2 Saboteur 1 | . . . . . . . . . . . . . . . . . . . . . . . . . . . . . . . . . . . . . . . . . . 1 Grunt 77 | . 4 . 15 . . 3 10 3 6 . . . . . 6 1 . 4 . 1 . . . 5 2 . . 1 . . . 3 . . . . 1 . 1 . 3 8 Brawler 7 | . . . 1 . . . . . . . . . . . 3 . . . . . . . . . . . 1 1 . . . . . . . . . . . . . 1 Duelist 4 | . . . 1 . . . . . . . . . . . . 2 . . . . . . . . . . . . . . . . . . . . . . . . . 1 Protector 1 | . . . . . . . . . . . . . . . . . . . . . . . . . 1 . . . . . . . . . . . . . . . . . Sentry 34 | . . . 6 . . . 2 1 6 4 . . . . 4 2 . . . 3 . . . . . . . 3 . . . 1 . 1 . . . 1 . . . . Specialist 4 | . . . . . . . . . . . . . . . . . . . . . . . . 1 . . . . . . . . . . . . . . . . . 3 Hunter 17 | . . . . . . . 1 . 1 . . . . . . . . . . . . . . 1 1 . . . . . . 1 . . . . . . 1 . 3 8 Programmer 38 | . . . . . . . . . . . . . . . 2 3 . 2 . . . . . 1 3 . 2 . . 1 . . 4 . 1 . 4 . 2 1 3 9 Heavy 1 | . . . . . . . . . . . . . . . . . . . . . . . . . . . . . . . . . . . . . . . . . 1 . Behemoth 2 | . . . . . . . . . . . . . . . . . . . . . . . . . . . . . . . . . . . 1 . . . . 1 . . S7 Guard 1 | . . . . . . . . . . . . . . . . . . . . . . . . . . . . . . . . . . . . . . . . 1 . . Alpha 7 1 | . . . . . . . . . . . . . . . . . . . . . . . . . . . . . . . . . . . . . . . . 1 . . Assembled 43 | . . . . . . . . . . . . 43 . . . . . . . . . . . . . . . . . . . . . . . . . . . . . . Best Kill Streak 36 | . 4 . 7 3 . 5 11 4 5 2 1 33 1 1 7 3 . 2 1 2 . 2 1 8 5 . 1 2 1 1 1 2 2 1 1 1 2 1 1 1 4 36 Combat Bots Only 36 | . 4 . 4 3 . 4 8 4 5 2 . 33 . 1 7 3 . 2 . 2 . . . 8 3 . 1 2 . 1 . 2 2 1 1 . 2 1 1 1 3 36 Max Kills in Single Turn 13 | . 3 . 3 3 . 1 3 3 1 1 1 4 1 1 5 1 . 1 1 1 . 1 1 8 4 . 1 1 1 1 1 1 1 1 1 1 1 1 1 1 2 13 Gunslinging . | . . . . . . . . . . . . . . . . . . . . . . . . . . . . . . . . . . . . . . . . . . . Exploded 13 | . 2 . 3 3 . 1 3 3 . . . 4 . . 2 . . . . . . . . 8 2 . . . . . . . . . . . . . . . . 13 Melee 1 | . . . 1 . . . 1 . . . . . . . . 1 . . . . . . . . . . . 1 . . . . . . . . . 1 1 . . . Uniques/NPCs Destroyed 1 | . . . . . . . . . . . . . . . . . . . . . . . . . . . . . . . . . . . . . . . . . . 1 MAIN.C Shell (-1/Command) Combat | -11 -10 -10 -9 -9 -9 -8 -8 -8 -8 -8 -7 -7 -7 -7 -7 -7 -6 -6 -6 -6 -6 -6 -6 -6 -5 -5 -5 -5 -4 -4 -4 -4 -3 -3 -3 -3 -3 -2 -2 -2 -1 -1 -------- Run | Jun Mat Min Mat Min Exi Min Mat Gar Mat Gar Fac Gar Fac Gar Fac Gar Fac Gar Fac Ext Cet Arc Hub Gar Fac Gar Fac Gar Fac Gar Fac Gar Res Gar Res Qua Gar Res Tes Sec Acc Com Damage Taken 26349 | . 351 . 899 99 . 493 1220 339 629 320 116 1044 294 297 1673 1704 402 408 91 31 . . 210 1035 961 58 640 291 361 70 452 273 540 195 100 55 424 115 1586 479 2033 6061 Core 3077 | . 48 . 127 16 . 82 106 43 32 31 . 46 50 20 219 222 94 132 27 6 . . 34 209 182 . 60 61 36 7 12 20 147 17 25 . 29 13 66 63 128 667 Absorbed by Shields 3939 | . . . . . . . . 40 . . 7 179 4 17 . 229 . 151 9 9 . . 37 299 279 . 180 105 . 51 285 204 304 164 82 42 258 86 108 82 . 728 Redirected to Shielding 577 | . . . . . . . 33 . . 10 . 22 . . 30 18 63 46 . . . . 15 21 25 12 . 18 . 11 . . 16 5 24 15 23 . 170 . . . Regen/Repaired (Parts) 10319 | . . . 56 . . . . . . . 118 . 626 . 484 . 212 . 64 15 . . . . 739 . 709 34 511 11 290 171 354 121 64 50 9 40 1285 10 1205 3141 Core Remaining (%) 64 | 100 . 80 . . . 43 . . . 61 . . . . . 20 . . . . . . . 40 . . . 69 . . . 93 . . . . 83 . . 90 . 25 Volleys Fired 1738 | . 30 . 74 4 . 27 35 29 53 23 17 56 29 46 61 46 43 45 26 20 1 2 28 32 133 20 92 21 47 11 46 46 77 36 54 40 54 8 74 120 65 67 Largest 2 | . 2 . 2 2 . 2 2 2 2 2 2 2 2 2 2 2 1 1 1 1 1 1 1 1 1 2 2 2 2 2 2 2 2 1 1 1 1 1 2 2 2 2 Hottest 320 | . 60 . 108 68 . 56 86 86 86 162 133 179 133 116 133 126 98 120 7 98 7 98 98 120 98 76 128 128 128 128 128 128 156 113 113 113 120 10 240 240 233 320 Shots Fired 2118 | . 56 . 119 6 . 47 65 48 98 29 19 86 35 52 77 51 43 45 26 20 1 2 28 32 133 24 100 24 52 13 49 52 84 36 55 40 54 8 78 148 92 91 Gun 496 | . 52 . 58 4 . 39 60 41 90 12 2 26 7 6 16 5 . . . . . . . . 3 9 20 3 5 2 3 6 5 . . . . . . . . 22 Cannon 746 | . . . 49 . . . . . . 3 3 43 19 13 43 5 11 24 . 5 . 2 17 25 52 . 17 3 9 6 13 13 44 12 29 20 23 . 28 102 72 41 Launcher 71 | . 4 . 12 2 . 8 5 6 . . 2 17 . . 3 . . . . . . . 1 3 1 . 1 . . . . . . . . . . . . . . 6 Special 805 | . . . . . . . . 1 8 14 12 . 9 33 15 41 32 21 26 15 1 . 10 4 77 15 62 18 38 5 33 33 35 24 26 20 31 8 50 46 20 22 Kinetic 399 | . 42 . 16 3 . 39 50 19 49 7 2 26 7 6 16 5 . . . . . . . . 3 9 20 3 5 2 3 6 14 . . . . . 4 . 5 38 Thermal 625 | . . . . . . . 10 22 1 3 2 12 12 . 16 5 11 32 . 5 . 2 17 25 52 . 17 3 9 6 13 13 35 12 29 20 23 . 24 102 67 25 Explosive 71 | . 4 . 12 2 . 8 5 6 . . 2 17 . . 3 . . . . . . . 1 3 1 . 1 . . . . . . . . . . . . . . 6 Electromagnetic 227 | . 10 . 91 1 . . . . 40 5 1 31 8 13 27 . . . . . . . . . . . . . . . . . . . . . . . . . . . Robot Hit Streak 25 | . 5 . 11 1 . 10 9 7 12 11 11 9 4 9 10 13 13 13 10 21 2 4 14 6 13 6 7 14 19 4 6 6 9 8 12 5 7 5 25 8 11 13 Robot Miss Streak 10 | . 2 . 10 5 . 2 2 3 3 2 1 3 1 4 3 2 2 2 1 1 . . 1 3 4 2 2 1 3 1 3 3 3 3 3 2 3 2 2 3 3 6 Penetration Max 2 | . . . . . . . . . . . . 2 . . 2 . . . . . . . . . . . 1 . . . 1 . . . . . . . . . . 1 Secondary Targets 5 | . 1 . . . . . 1 . 1 1 . . . . . . . . . . . . . . . . 1 . . . . . . . . . . . . . . . Max Gunslinging Chain 1 | . 1 . . . . . 1 . 1 1 . . . . . . . . . . . . . . . . 1 . . . . . . . . . . . . . . . Shots Hit Robots 1449 | . 32 . 91 1 4 31 68 23 72 27 13 40 22 31 55 71 33 32 24 24 1 11 13 35 77 18 65 32 36 6 29 40 60 22 27 27 31 10 54 62 47 52 Core Hits 601 | . 28 . 45 3 . 24 33 16 38 6 1 70 8 1 38 11 . 10 . 2 . 3 2 20 13 1 12 4 2 1 5 2 15 3 3 3 5 2 3 8 15 145 Critical Kills 15 | . . . . . . 1 . . . . . 2 1 . 5 . . . . . . . . . . . . 1 . . . . 2 . 1 . . . . 1 1 . Critical Parts Destroyed 33 | . . . 6 1 . . 2 . . 2 . 1 . 2 2 5 . . . 3 . . . . 1 . 1 1 . 1 . 3 1 . . 1 . . . . . . Critical Strikes 59 | . . . 6 1 . 1 3 1 . 2 . 3 1 2 8 8 . 1 . 3 . . . . 1 . 1 2 . 1 . 3 6 . 1 1 . . . 1 1 1 Burn 2 | . . . . . . . 1 1 . . . . . . . . . . . . . . . . . . . . . . . . . . . . . . . . . . Meltdown 5 | . . . . . . . . . . . . . 1 . 1 . . . . . . . . . . . . . . . . . . . 1 . . . . 1 1 . Destroy 18 | . . . . 1 . 1 1 . . . . 3 . 2 5 1 . . . . . . . . . . 1 1 . 1 . . 1 . . . . . . . . . Blast 4 | . . . . . . . . . . . . . . . . . . . . . . . . . . . . . . . . . 3 . . . . . . . . 1 Smash 26 | . . . 6 . . . 1 . . 2 . . . . 2 4 . . . 3 . . . . 1 . . 1 . . . 3 2 . . 1 . . . . . . Sever 4 | . . . . . . . . . . . . . . . . 3 . 1 . . . . . . . . . . . . . . . . . . . . . . . . Melee Attacks 303 | . . . 25 . 4 . 37 9 11 8 . . 6 . 12 47 6 5 8 5 . 10 . 22 14 . . 14 7 . . 9 9 . . 9 . 12 14 . . . Impact 209 | . . . 25 . . . 33 9 11 8 . . . . 11 30 6 5 8 5 . . . 6 7 . . 11 7 . . 9 9 . . 9 . . . . . . Slashing 66 | . . . . . . . 4 . . . . . 6 . 1 17 . . . . . 7 . 2 . . . 3 . . . . . . . . . 12 14 . . . Piercing . | . . . . . . . . . . . . . . . . . . . . . . . . . . . . . . . . . . . . . . . . . . . Sneak Attacks 67 | . . . 3 . 4 . 5 . . . . . 1 . . 2 . . 2 5 . 9 . 9 4 . . 8 1 . . 7 3 . . 2 . 2 . . . . Combat Hostiles 24 | . . . . . . . . . . . . . . . . 2 . . . 5 . . . . 1 . . 7 . . . 7 . . . . . 2 . . . . Follow-up Attacks 15 | . . . . . . . 3 . . . . . . . 1 6 . . . . . . . 2 . . . 3 . . . . . . . . . . . . . . Damage Inflicted 43596 | . 795 . 3035 264 . 964 2515 898 1168 343 73 2540 494 170 2182 1870 107 756 140 461 . 713 151 1420 1225 197 733 911 451 121 354 1161 1662 246 289 838 428 479 703 1136 1669 9934 Guns 6364 | . 347 . 754 14 . 477 702 422 1168 162 18 140 47 22 132 68 . . . . . . . . 51 197 476 52 146 78 72 118 36 . . . . . . . . 665 Cannons 12664 | . . . 848 . . . . . . 64 . 818 350 148 823 117 107 668 . 135 . 69 151 496 483 . 198 111 187 43 263 222 1110 246 289 408 428 . 551 1136 1669 526 Explosions 15773 | . 448 . 695 250 . 487 644 476 . . 55 1582 . . 996 . . . . . . . . 791 547 . 59 . . . . . . . . . . . . . . 8743 Melee 8672 | . . . 738 . . . 1169 . . 117 . . 97 . 231 1685 . . 140 326 . 644 . 133 144 . . 748 118 . . 821 516 . . 414 . 479 152 . . . Ramming 35 | . . . . . . . . . . . . . . . . . . . . . . . . . . . . . . . 19 . . . . 16 . . . . . . Kinetic 5307 | . 210 . 81 14 . 477 496 160 498 83 18 140 47 22 132 68 . . . . . . . . 51 197 476 52 146 78 72 118 325 . . . . . 242 . 160 944 Thermal 11455 | . 127 . 88 . . . 206 262 20 66 . 224 186 . 998 117 107 756 . 135 . 69 151 496 1030 . 198 111 187 43 263 222 821 246 289 408 428 . 309 1136 1509 247 Explosive 14303 | . 321 . 607 250 . 487 644 476 . . 55 1582 . . 288 . . . . . . . . 791 . . 59 . . . . . . . . . . . . . . 8743 Electromagnetic 3824 | . 137 . 1521 . . . . . 650 77 . 594 164 148 533 . . . . . . . . . . . . . . . . . . . . . . . . . . . Impact 6261 | . . . 738 . . . 1095 . . 117 . . . . 194 1057 . . 140 326 . . . 35 144 . . 546 118 . . 821 516 . . 414 . . . . . . Slashing 2411 | . . . . . . . 74 . . . . . 97 . 37 628 . . . . . 644 . 98 . . . 202 . . . . . . . . . 479 152 . . . Piercing . | . . . . . . . . . . . . . . . . . . . . . . . . . . . . . . . . . . . . . . . . . . . Highest Corruption 11 | . . 1 . . . . . . . . . 7 7 . . 7 . 2 2 . . . . . 1 . 1 . . . . 2 5 . 1 . 3 . 11 . . . Average Corruption 4 | . . 1 . . . . . . . . . 6 2 . . 6 . 1 1 . . . . . 1 . 1 . . . . 1 2 . 1 . 2 . 6 . . . Corruption Purged 35 | . . . . . . . . . . . . . 7 . . . . . 2 . . . . . 1 . 1 . . . . 2 5 . 2 . 4 . 11 . . . Corruption Blocked 125 | . . . . . . . . . . . . . . . . . . . . . . . . . . . . . . . . . . . . 45 . . 40 40 . . Effects 97 | . . . . . . . . . . . . 9 18 . . 46 . 3 6 . . . . . . . 2 . . . . 2 1 . 1 . 3 . 6 . . . Message Errors 24 | . . . . . . . . . . . . 3 4 . . 9 . 2 4 . . . . . . . 1 . . . . . . . . . 1 . . . . . Matter Fused 20 | . . . . . . . . . . . . 2 2 . . 9 . . . . . . . . . . 1 . . . . . . . . . 2 . 4 . . . Heat Flow Errors 12 | . . . . . . . . . . . . . 3 . . 8 . . . . . . . . . . . . . . . 1 . . . . . . . . . . Energy Discharges 13 | . . . . . . . . . . . . 2 6 . . 5 . . . . . . . . . . . . . . . . . . . . . . . . . . Parts Rejected 2 | . . . . . . . . . . . . . . . . 1 . . . . . . . . . . . . . . . 1 . . . . . . . . . . Parts Fused 2 | . . . . . . . . . . . . . 1 . . . . . 1 . . . . . . . . . . . . . . . . . . . . . . . Data Loss (minor) 10 | . . . . . . . . . . . . 1 . . . 6 . 1 1 . . . . . . . . . . . . . . . . . . . 1 . . . Data Loss (major) 6 | . . . . . . . . . . . . . . . . 5 . . . . . . . . . . . . . . . . 1 . . . . . . . . . Misfires 2 | . . . . . . . . . . . . . . . . . . . . . . . . . . . . . . . . . . . 1 . . . 1 . . . Alerts 5 | . . . . . . . . . . . . . 2 . . 3 . . . . . . . . . . . . . . . . . . . . . . . . . . Weapon Failures 1 | . . . . . . . . . . . . 1 . . . . . . . . . . . . . . . . . . . . . . . . . . . . . . Overload Shots . | . . . . . . . . . . . . . . . . . . . . . . . . . . . . . . . . . . . . . . . . . . . Overflow Damage 3773 | . 25 . 428 26 . 56 231 31 . 90 . 94 77 3 73 290 . 49 80 230 . 152 7 41 195 . 42 120 48 3 10 467 114 . 9 250 . 71 93 38 168 162 Projectiles 605 | . . . 26 . . . . . . . . 13 13 3 . . . 49 . . . . 7 11 51 . 42 . . 3 10 . . . 9 33 . . 55 38 168 74 Explosions 352 | . 25 . 25 26 . 56 . 31 . . . 81 . . 15 . . . . . . . . 5 . . . . . . . . . . . . . . . . . 88 Melee 2816 | . . . 377 . . . 231 . . 90 . . 64 . 58 290 . . 80 230 . 152 . 25 144 . . 120 48 . . 467 114 . . 217 . 71 38 . . . Knockbacks 20 | . . . 2 . . . 2 . . . . . . . . 2 . . 1 2 . . . . . . . . 1 . . 2 2 . . 1 . . 3 . . 2 Impact 12 | . . . 1 . . . 2 . . . . . . . . 2 . . 1 1 . . . . . . . . 1 . . 2 1 . . 1 . . . . . . Kinetic 5 | . . . . . . . . . . . . . . . . . . . . . . . . . . . . . . . . . 1 . . . . . 2 . . 2 Secondary 3 | . . . 1 . . . . . . . . . . . . . . . . 1 . . . . . . . . . . . . . . . . . . 1 . . . Self-Inflicted Damage 1161 | . 32 . 80 74 . 74 . 75 . . . 148 . . 204 . . . . . . . 21 85 67 . 40 . . . 9 . . . . 8 . . . . . 244 Shots 31 | . 3 . 4 2 . 2 . 2 . . . 4 . . 4 . . . . . . . 1 3 1 . 1 . . . . . . . . . . . . . . 4 Rammed 2 | . . . . . . . . . . . . . . . . . . . . . . . . . . . . . . . 1 . . . . 1 . . . . . . Targets Rammed 2 | . . . . . . . . . . . . . . . . . . . . . . . . . . . . . . . 1 . . . . 1 . . . . . . Kicked . | . . . . . . . . . . . . . . . . . . . . . . . . . . . . . . . . . . . . . . . . . . . Crushed . | . . . . . . . . . . . . . . . . . . . . . . . . . . . . . . . . . . . . . . . . . . . Highest Temperature 343 | . 142 . 234 . . . 343 127 295 48 52 162 250 224 336 234 96 38 . 46 . 76 126 58 156 . 74 68 184 . 189 132 316 115 270 . 280 . 228 313 178 178 Average Temperature 70 | . 31 . 75 . . . 157 45 91 12 13 41 79 74 71 82 33 9 . 23 . 42 43 13 31 . 26 29 64 . 53 48 72 56 75 . 79 . 67 88 108 100 Received Heat Transfer 3652 | . 90 . 246 . . 171 639 135 216 117 42 220 69 72 300 391 72 66 28 10 . . 36 82 60 . 43 54 18 . 110 15 70 17 4 4 10 12 49 66 36 82 Effects 8 | . . . 2 . . . . . . . . . . . . 1 . . . . . . . . . . . . . . . . 5 . . . . . . . . . Energy Bleed 3 | . . . 1 . . . . . . . . . . . . . . . . . . . . . . . . . . . . . 2 . . . . . . . . . Interference 5 | . . . 1 . . . . . . . . . . . . 1 . . . . . . . . . . . . . . . . 3 . . . . . . . . . Siege Activations . | . . . . . . . . . . . . . . . . . . . . . . . . . . . . . . . . . . . . . . . . . . . Robots Corrupted 4 | . . . 4 . . . . . . . . . . . . . . . . . . . . . . . . . . . . . . . . . . . . . . . Combat Hostiles 4 | . . . 4 . . . . . . . . . . . . . . . . . . . . . . . . . . . . . . . . . . . . . . . Parts Fried 43 | . . . 14 . . . 3 . . 3 . . 1 . 2 3 . . 3 2 . . . 3 3 . . . 2 . . 1 1 . . 2 . . . . . . Impact Corruptions 66 | . . . 10 . . . 7 . . 2 . . . . 2 11 . . 3 5 . . . 2 3 . . 2 2 . . 8 2 . . 7 . . . . . . Robots Melted 5 | . . . . . . . . . . . . . 1 . 1 . . . . . . . . . . . . . . . . . . . 1 . . . . 1 1 . Combat Hostiles 4 | . . . . . . . . . . . . . . . 1 . . . . . . . . . . . . . . . . . . . 1 . . . . 1 1 . Parts Melted 29 | . . . . . . . 1 2 . . . . 2 . 6 1 . 2 . . . . . 3 . . . . . . . . 1 . 3 . 2 . 1 1 4 . Heat Transferred 10689 | . 200 . 100 . . . 444 522 37 111 . 350 250 . 900 150 150 1230 . 200 . 100 200 790 600 . . . . . . . 474 203 259 370 333 . 259 1052 1239 166 Parts Sabotaged . | . . . . . . . . . . . . . . . . . . . . . . . . . . . . . . . . . . . . . . . . . . . Parts Stolen . | . . . . . . . . . . . . . . . . . . . . . . . . . . . . . . . . . . . . . . . . . . . Parts Stripped . | . . . . . . . . . . . . . . . . . . . . . . . . . . . . . . . . . . . . . . . . . . . Power Chain Reactions 10 | . 3 . 3 . . . . . . . . . . . 2 . . . . . . . . . 2 . . . . . . . . . . . . . . . . . Missiles Intercepted . | . . . . . . . . . . . . . . . . . . . . . . . . . . . . . . . . . . . . . . . . . . . Alert | -11 -10 -10 -9 -9 -9 -8 -8 -8 -8 -8 -7 -7 -7 -7 -7 -7 -6 -6 -6 -6 -6 -6 -6 -6 -5 -5 -5 -5 -4 -4 -4 -4 -3 -3 -3 -3 -3 -2 -2 -2 -1 -1 ------- Run | Jun Mat Min Mat Min Exi Min Mat Gar Mat Gar Fac Gar Fac Gar Fac Gar Fac Gar Fac Ext Cet Arc Hub Gar Fac Gar Fac Gar Fac Gar Fac Gar Res Gar Res Qua Gar Res Tes Sec Acc Com Peak Influence 1743 | . 300 198 679 249 . 242 278 837 407 600 375 301 381 1516 942 875 633 598 387 269 330 308 526 968 928 1743 1559 1705 914 820 1146 734 904 802 212 262 554 270 396 703 509 544 Initial 894 | . . 117 14 178 . . 35 39 407 . 315 30 157 116 795 124 459 254 313 139 31 132 18 221 508 649 880 800 894 . 340 466 326 309 211 3 . 270 75 . 309 262 Average 357 | . 116 96 376 133 . 99 77 423 134 303 159 168 207 866 479 488 355 424 164 124 175 130 212 661 315 1444 701 1375 192 469 581 513 449 469 75 140 312 137 168 249 399 162 Maximum Alert Level 5 | . 1 . 2 1 . 1 1 3 2 2 1 1 1 4 3 3 2 2 1 1 1 1 2 3 3 5 4 5 3 3 4 3 3 3 1 1 2 1 1 3 2 3 Low Security (%) 39 | 100 68 100 12 65 . 80 87 8 72 36 63 69 45 17 30 16 19 . 67 78 70 72 44 . 32 . 18 . 73 23 . 1 14 . 81 70 18 87 51 55 . 63 Level 1 27 | . 31 . 45 34 . 19 12 49 25 14 36 30 54 2 12 20 36 44 32 21 29 27 45 15 36 . 12 . 8 22 30 25 21 49 18 29 47 12 48 11 53 21 Level 2 21 | . . . 41 . . . . 30 1 49 . . . 18 23 41 43 55 . . . . 9 44 27 8 8 . 8 27 47 71 52 37 . . 33 . . 28 46 12 Level 3 8 | . . . . . . . . 11 . . . . . 21 33 21 . . . . . . . 39 4 15 42 12 9 26 20 1 12 12 . . . . . 5 . 2 Level 4 3 | . . . . . . . . . . . . . . 40 . . . . . . . . . . . 25 17 78 . . 1 . . . . . . . . . . . Level 5 . | . . . . . . . . . . . . . . . . . . . . . . . . . . 50 . 8 . . . . . . . . . . . . . . High Security . | . . . . . . . . . . . . . . . . . . . . . . . . . . . . . . . . . . . . . . . . . . . Max Security . | . . . . . . . . . . . . . . . . . . . . . . . . . . . . . . . . . . . . . . . . . . . Squads Dispatched 180 | . 2 1 4 . . . 4 . 1 . 4 . 6 . 7 . 10 . 6 . . . 7 . 20 . 23 . 6 . 8 . 16 . 4 7 . 8 12 19 3 2 Investigation 41 | . 2 1 4 . . . 1 . . . 1 . . . 2 . 5 . 2 . . . 1 . 5 . 5 . 2 . 1 . 4 . 2 . . 1 1 1 . . Extermination 42 | . . . . . . . . . . . 2 . 2 . 3 . 3 . 1 . . . 2 . 5 . 3 . 2 . 1 . 3 . 1 3 . 1 4 4 1 1 Reinforcement 58 | . . . . . . . . . 1 . 1 . 1 . 1 . 1 . 1 . . . 1 . 9 . 5 . . . 2 . 5 . 1 4 . 5 5 13 2 . Assault 22 | . . . . . . . . . . . . . . . 1 . . . 1 . . . . . 1 . 7 . 2 . 3 . 3 . . . . 1 1 1 . 1 Garrison 17 | . . . . . . . 3 . . . . . 3 . . . 1 . 1 . . . 3 . . . 3 . . . 1 . 1 . . . . . 1 . . . Intercept . | . . . . . . . . . . . . . . . . . . . . . . . . . . . . . . . . . . . . . . . . . . . Searches Triggered . | . . . . . . . . . . . . . . . . . . . . . . . . . . . . . . . . . . . . . . . . . . . Construction Impeded 6 | . . . . . . . . . . . . . . . 1 . . . 1 . . . . . 1 . 1 . . . 1 . 1 . . . . . . . . . Haulers Reinforced 6 | . . . . . . . . . . . . . . . . . . . . . . . . . 1 . 1 . . . . . . . 1 . . 2 . 1 . . Active Scanning Responses . | . . . . . . . . . . . . . . . . . . . . . . . . . . . . . . . . . . . . . . . . . . . Cargo Convoy Interrupts 3 | . . . . . . . . . . . . . . . . . . . . . . . . . 1 . . . 1 . 1 . . . . . . . . . . . Stealth | -11 -10 -10 -9 -9 -9 -8 -8 -8 -8 -8 -7 -7 -7 -7 -7 -7 -6 -6 -6 -6 -6 -6 -6 -6 -5 -5 -5 -5 -4 -4 -4 -4 -3 -3 -3 -3 -3 -2 -2 -2 -1 -1 --------- Run | Jun Mat Min Mat Min Exi Min Mat Gar Mat Gar Fac Gar Fac Gar Fac Gar Fac Gar Fac Ext Cet Arc Hub Gar Fac Gar Fac Gar Fac Gar Fac Gar Res Gar Res Qua Gar Res Tes Sec Acc Com Distress Signals 41 | . . . 4 . . . 2 . 1 . . . 4 . 2 . 4 . 2 1 2 . 1 . 3 . 2 . 1 1 2 . 1 . 1 1 . 2 2 1 . 1 Communications Jammed 482 | . . . . . . . . . . . . . . . . . . . . . . . . . . . . . . . . . 3 . 17 . . 74 244 144 . . Distress Signals 480 | . . . . . . . . . . . . . . . . . . . . . . . . . . . . . . . . . 1 . 17 . . 74 244 144 . . Times Spotted 1263 | . 21 2 47 5 . 9 18 18 30 20 12 52 23 44 40 43 32 21 19 14 8 5 25 28 81 31 86 33 20 16 50 32 67 28 23 15 42 9 40 50 22 82 Peak Tracking Total 113 | . 4 2 5 3 . 3 7 4 5 5 3 8 5 5 4 7 3 4 4 5 4 2 7 11 7 9 12 5 5 3 8 7 5 3 3 3 7 2 7 6 4 113 Tactical Retreats 28 | . . . . . . . . . 1 . . 4 . 2 2 4 . . . . . . 2 1 1 . 1 2 . . . . 1 . 1 1 1 . 1 . . 3 Traps | -11 -10 -10 -9 -9 -9 -8 -8 -8 -8 -8 -7 -7 -7 -7 -7 -7 -6 -6 -6 -6 -6 -6 -6 -6 -5 -5 -5 -5 -4 -4 -4 -4 -3 -3 -3 -3 -3 -2 -2 -2 -1 -1 ------- Run | Jun Mat Min Mat Min Exi Min Mat Gar Mat Gar Fac Gar Fac Gar Fac Gar Fac Gar Fac Ext Cet Arc Hub Gar Fac Gar Fac Gar Fac Gar Fac Gar Res Gar Res Qua Gar Res Tes Sec Acc Com Traps Triggered 48 | . . . 2 . . . 1 5 . 2 . . 1 7 5 2 2 . . . . . 1 3 3 . 1 2 . 2 . 3 . 4 1 1 . . . . . . Indirectly . | . . . . . . . . . . . . . . . . . . . . . . . . . . . . . . . . . . . . . . . . . . . Trap Hack Attempts 3 | . . . . . . . . . . . . . . . . . . . . . . . . 3 . . . . . . . . . . . . . . . . . . Triggered . | . . . . . . . . . . . . . . . . . . . . . . . . . . . . . . . . . . . . . . . . . . . Disarmed 44 | . . . 5 . . . . . . . . . . . . . . . . . . . 4 . . . 4 . . . . . 6 . . 7 . 10 1 7 . . Reprogrammed 50 | . 6 . 3 . . . . . . . . . . . . . . . 6 . . . 5 . 8 . . . 13 . . . . . 1 . . 4 . 4 . . Reused 4 | . 1 . . . . . . . . . . . . . . . . 1 . . . . . . . . . . 1 . . . . . . . . 1 . . . . Traps Extracted . | . . . . . . . . . . . . . . . . . . . . . . . . . . . . . . . . . . . . . . . . . . . Installed 4 | . . . . . . . . . . . . . . . . . . 4 . . . . . . . . . . . . . . . . . . . . . . . . Triggered 10 | . 1 . . . . . . . . . . . . . . 1 1 1 . . . . . . 3 . . . 1 . . . . . 1 . . 1 . . . . Most Traps Carried 4 | . . . . . . . . . . . . . . . . . . 4 . . . . . . . . . . . . . . . . . . . . . . . . Power Sources Rigged 44 | . . . . . . . 1 2 . . . . . . . . 3 11 . . 3 . 2 7 1 6 1 . 2 . . . . . . . . . . 5 . . Exploded 17 | . . . . . . . 1 2 . . . . . . . . 1 4 . . . . 1 3 1 1 . . 1 . . . . . . . . . . 2 . . Exploded 1 | . . . . . . . . . . . . . . . 1 . . . . . . . . . . . . . . . . . . . . . . . . . . . Machines | -11 -10 -10 -9 -9 -9 -8 -8 -8 -8 -8 -7 -7 -7 -7 -7 -7 -6 -6 -6 -6 -6 -6 -6 -6 -5 -5 -5 -5 -4 -4 -4 -4 -3 -3 -3 -3 -3 -2 -2 -2 -1 -1 ---------- Run | Jun Mat Min Mat Min Exi Min Mat Gar Mat Gar Fac Gar Fac Gar Fac Gar Fac Gar Fac Ext Cet Arc Hub Gar Fac Gar Fac Gar Fac Gar Fac Gar Res Gar Res Qua Gar Res Tes Sec Acc Com Machines Disabled 177 | . 1 . 2 . . 1 1 3 4 5 1 2 6 6 10 3 7 4 . 2 . 1 5 4 18 1 11 3 6 2 8 4 1 4 3 6 4 1 12 20 4 1 Max in Single Turn 6 | . 1 . 1 . . 1 1 1 1 1 . 1 . 1 6 1 . 1 . . . . . 1 1 1 . 1 . 1 . 1 . 1 1 1 1 1 1 1 1 . Garrison Access 22 | . . . . . . . . . . . . . 1 . 1 . 2 . 1 . . . . . 2 . 3 . 1 . 2 . 2 . 2 . . 2 1 . 2 . Garrison Relay 41 | . . . . . . . . 3 . 5 . 2 . 5 . 3 . 2 . . . . . 4 . 1 . 4 . 2 . 4 . 4 . . 2 . . . . . Network Hub 2 | . . . . . . . . . . . . . . . . . . . . . . . 2 . . . . . . . . . . . . . . . . . . . Machines Repaired . | . . . . . . . . . . . . . . . . . . . . . . . . . . . . . . . . . . . . . . . . . . . Machines Sabotaged . | . . . . . . . . . . . . . . . . . . . . . . . . . . . . . . . . . . . . . . . . . . . Overloaded Fab Kills . | . . . . . . . . . . . . . . . . . . . . . . . . . . . . . . . . . . . . . . . . . . . Hacking | -11 -10 -10 -9 -9 -9 -8 -8 -8 -8 -8 -7 -7 -7 -7 -7 -7 -6 -6 -6 -6 -6 -6 -6 -6 -5 -5 -5 -5 -4 -4 -4 -4 -3 -3 -3 -3 -3 -2 -2 -2 -1 -1 --------- Run | Jun Mat Min Mat Min Exi Min Mat Gar Mat Gar Fac Gar Fac Gar Fac Gar Fac Gar Fac Ext Cet Arc Hub Gar Fac Gar Fac Gar Fac Gar Fac Gar Res Gar Res Qua Gar Res Tes Sec Acc Com Machines Accessed 355 | . 9 2 15 1 2 1 10 5 10 5 10 1 16 3 27 3 24 2 12 6 1 . 16 2 25 2 19 2 16 3 12 4 16 3 13 11 1 10 12 16 3 4 Terminals 234 | . 8 1 11 1 . 1 7 5 9 5 4 1 9 3 17 3 10 2 8 6 1 . 14 2 13 2 10 2 8 3 5 4 10 3 7 7 1 6 8 13 . 4 Fabricators 39 | . . . . . . . . . . . 3 . 3 . 5 . 5 . 2 . . . . . 4 . 4 . 3 . 2 . 3 . 2 . . 1 1 . 1 . Repair Stations 18 | . . . 2 . . . . . . . 1 . 1 . 2 . 3 . . . . . . . 1 . 1 . 1 . 1 . 1 . 1 1 . . 2 . . . Recycling Units 17 | . 1 . 1 . . . . . . . 1 . 1 . . . 3 . 2 . . . . . 3 . . . 3 . . . . . . . . 2 . . . . Scanalyzers 13 | . . . 1 . . . 2 . . . . . . . 1 . . . . . . . . . 1 . 1 . . . 1 . . . 1 2 . . 1 2 . . Garrison Access 31 | . . . . . . . 1 . 1 . 1 . 2 . 2 . 3 . . . . . 2 . 3 . 3 . 1 . 3 . 2 . 2 1 . 1 . 1 2 . Total Hacks 1675 | . 29 3 51 4 5 2 46 10 38 11 48 2 43 6 97 5 102 14 62 14 2 . 44 13 149 7 129 13 105 27 78 33 103 25 69 48 10 60 72 67 8 21 Successful 1156 | . 12 1 31 4 5 2 30 5 23 6 37 . 19 2 57 2 70 7 42 10 1 . 34 6 97 5 85 6 90 14 55 14 74 13 59 43 8 52 56 55 8 16 Failed 517 | . 17 2 19 . . . 16 5 15 5 11 2 24 4 40 3 32 7 20 4 1 . 10 7 51 2 44 7 15 13 23 19 29 12 10 5 2 8 16 12 . 5 Catastrophic 87 | . 1 . 3 . . . 3 2 3 3 1 . 5 2 7 . 3 1 1 2 . . . 3 12 . 7 1 . 3 6 4 6 1 2 1 . . 3 1 . . Database Lockouts 2 | . . . 1 . . . . . . . . . . . . . . . . . . . . . 1 . . . . . . . . . . . . . . . . . Manual 873 | . 13 2 27 4 1 2 23 2 21 7 27 . 26 3 36 . 53 9 36 5 1 . 26 10 75 5 51 11 53 25 34 30 52 23 31 21 10 35 29 36 3 15 Terminals 1159 | . 28 2 44 4 . 2 33 10 37 11 17 2 25 6 60 5 51 14 44 14 2 . 38 13 96 7 73 13 59 27 34 33 76 25 46 38 10 41 45 53 . 21 Fabricators 201 | . . . . . . . . . . . 19 . 9 . 18 . 22 . 9 . . . . . 21 . 25 . 22 . 11 . 17 . 10 . . 8 5 . 5 . Repair Stations 93 | . . . 4 . . . . . . . 5 . 3 . 7 . 8 . . . . . . . 7 . 15 . 4 . 13 . 2 . 2 2 . . 21 . . . Recycling Units 69 | . 1 . 1 . . . . . . . 3 . 3 . . . 16 . 9 . . . . . 12 . . . 15 . . . . . . . . 9 . . . . Scanalyzers 69 | . . . 2 . . . 12 . . . . . . . 9 . . . . . . . . . 3 . 8 . . . 13 . . . 8 4 . . 1 9 . . Garrison Access 78 | . . . . . . . 1 . 1 . 4 . 3 . 3 . 5 . . . . . 6 . 10 . 8 . 5 . 7 . 8 . 3 4 . 2 . 5 3 . Terminal Hacks 505 | . 7 1 16 4 5 2 13 5 15 5 6 . 3 2 19 2 14 4 19 8 1 . 18 5 37 4 33 5 33 10 11 12 35 10 26 24 6 23 24 28 . 10 Record 4 | . . . . . 4 . . . . . . . . . . . . . . . . . . . . . . . . . . . . . . . . . . . . . Part Schematic 31 | . . . 1 1 . 2 . . . . 1 . . . 2 . 3 . . . . . . . 5 . 5 . . 1 1 1 1 1 1 1 . 2 2 . . . Robot Schematic 15 | . . . . . . . 1 . . . 1 . . . . . 1 . . . . . . . 2 . . . 2 . . 1 2 . 2 1 . . 2 . . . Robot Analysis 14 | . . . 1 3 . . . . 2 . . . . . . . 1 . 1 . . . . . . . . . . . . . 3 . . 2 . . 1 . . . Prototype ID Bank 41 | . 1 . 4 . . . 2 . 4 . . . 1 . 3 . 1 . 1 1 . . 2 . 2 . 4 . 1 . 1 . 2 . 2 3 . 1 2 2 . 1 Open Door 21 | . . 1 . . . . . 2 . 1 . . . . . 1 . . 1 4 1 . . . . 1 . . . . . 1 . 1 1 . . . 1 4 . 1 Level Access Points 7 | . . . . . . . . . . . . . . . 1 . . . 1 . . . . . 1 . . . 1 . . . 1 . 1 . . . . 1 . . Branch Access Points 8 | . . . 1 . . . . . . . . . . . . . . . 1 . . . . . 1 . 1 . 1 . . . 1 . 1 . . 1 . . . . Emergency Access Points 7 | . . . . . . . . 1 . . . . . 1 . 1 . . . . . . . 1 . 1 . 1 . . . 1 . . . . . . . . . . Machine Index 15 | . . . . . . . . . . . 1 . . . 1 . 1 . . . . . 1 . 1 . 1 . 1 . . . 1 . 1 1 . 1 2 1 . 1 Terminal Index 14 | . 1 . 1 . . . 1 . 1 . . . . . 1 . 1 . 1 1 . . . . 1 . . . 1 . 1 . 1 . 1 . . . . 1 . . Fabricator Index 1 | . . . . . . . . . . . . . . . . . . . 1 . . . . . . . . . . . . . . . . . . . . . . . Repair Station Index 2 | . . . . . . . . . . . . . . . . . . . 1 . . . . . 1 . . . . . . . . . . . . . . . . . Recycling Unit Index 1 | . . . . . . . . . . . . . . . . . . . 1 . . . . . . . . . . . . . . . . . . . . . . . Scanalyzer Index 1 | . . . . . . . . . . . . . . . . . . . 1 . . . . . . . . . . . . . . . . . . . . . . . Garrison Index 6 | . . . . . . . 1 . 1 . . . . . . . . . 1 . . . . . . . . . 1 . 1 . . . 1 . . . . . . . Alert Level 2 | . . . . . . . 2 . . . . . . . . . . . . . . . . . . . . . . . . . . . . . . . . . . . Unreport Threat 97 | . . . 2 . . . 2 . 4 1 1 . . . 5 . 2 2 2 1 . . 5 1 5 1 8 2 5 5 4 4 7 5 3 3 3 3 3 5 . 3 Locate Traps 37 | . 4 . 3 . . . 1 . 2 . . . 1 . 1 . 1 . 1 1 . . 2 . 3 . 1 . 5 . 1 . 2 . 1 1 . 2 1 2 . 1 Disarm Traps 12 | . . . 1 . . . . . . . . . . . . . . . . . . . 1 . . . 1 . . . . . 2 . . 2 . 2 1 2 . . Reprogram Traps 12 | . 1 . 1 . . . . . . . . . . . . . . . 1 . . . 1 . 2 . . . 3 . . . . . 1 . . 1 . 1 . . Dispatch Records 3 | . . . . . . . . . . . . . . . . . . . . . . . . . . . 1 . . . . . . . 1 . . 1 . . . . Maintenance Status 1 | . . . . . . . . . . . . . . . . . . . . . . . . . . . . . . . . . . . . 1 . . . . . . Patrol Status 2 | . . . . . . . 1 . . . . . 1 . . . . . . . . . . . . . . . . . . . . . . . . . . . . . Transport Status 1 | . . . . . . . . . . . . . . . . . . . . . . . . . . . . . . . . . 1 . . . . . . . . . Investigation Status 1 | . . . . . . . 1 . . . . . . . . . . . . . . . . . . . . . . . . . . . . . . . . . . . Reinforcement Status 3 | . . . . . . . . . . . . . . . . . . . . . . . . . 1 . 1 . . . . . . . . . . . . 1 . . Assault Status 2 | . . . . . . . . . . . . . . . 1 . . . . . . . . . . . . . . . . . 1 . . . . . . . . . Recall Investigation 10 | . . . . . . . . . . . 1 . . . 1 . 1 . . . . . 1 . 1 . . . 1 . . . 1 . 1 . . . 2 . . . Recall Extermination 8 | . . . . . . . . . . . . . . . . . . . . . . . . . 2 . . . 2 . . . 1 . 1 . . 1 1 . . . Recall Reinforcements 13 | . . . . . . . . . . . . . . . . . . . . . . . . . . . 1 . . . . . . . . 2 . 3 3 4 . . Recall Assault 3 | . . . . . . . . . . . . . . . . . . . . . . . . . . . . . . . 1 . 1 . . . . 1 . . . . Hauler Manifests 15 | . . . 1 . . . 1 . 1 . . . . . . . . . 1 . . . . . 2 . 2 . 2 . . . 1 . 2 1 . 1 . . . . Registered Components 7 | . . . . . . . . . . . . . . . 1 . . . . . . . 1 . 1 . . . 1 . . . . . 1 . . 1 . . . 1 Registered Prototypes 3 | . . . . . . . . . . . . . . . . . . . . . . . . . . . . . . . . . 1 . . 1 . 1 . . . . Zone Layout 56 | . . . . . . . . . . . 1 . . . 2 . 2 . 3 . . . 4 . 6 . 7 . 6 . 1 . 5 . 4 5 . 1 3 4 . 2 Garrison Registry 12 | . . . . . . . . 1 . 1 . . . 1 . . . 1 . . . . . 1 . 1 . 2 . 1 . 1 . 1 . . 1 . . . . . Patrol Navigation 9 | . . . . . . . . 1 . 1 . . . . . . . 1 . . . . . 1 . . . . . 2 . 1 . 1 . . 1 . . . . . Security Stations 7 | . . . . . . . . . . 1 . . . . . . . . . . . . . 1 . . . . . 1 . 2 . 1 . . 1 . . . . . EX-Prototype ID Bank 1 | . . . . . 1 . . . . . . . . . . . . . . . . . . . . . . . . . . . . . . . . . . . . . Fabricator Hacks 83 | . . . . . . . . . . . 8 . 2 . 3 . 10 . 6 . . . . . 9 . 8 . 13 . 4 . 7 . 4 . . 5 2 . 2 . Network Status 13 | . . . . . . . . . . . 1 . 1 . 1 . 1 . . . . . . . 1 . 1 . 3 . 2 . . . . . . 1 . . 1 . Load Schematic 32 | . . . . . . . . . . . 3 . . . 1 . 4 . 3 . . . . . 4 . 3 . 5 . 1 . 3 . 2 . . 2 1 . . . Build 38 | . . . . . . . . . . . 4 . 1 . 1 . 5 . 3 . . . . . 4 . 4 . 5 . 1 . 4 . 2 . . 2 1 . 1 . Repair Station Hacks 75 | . . . 4 . . . . . . . 4 . 2 . 6 . 6 . . . . . . . 6 . 10 . 4 . 11 . 2 . 2 2 . . 16 . . . Scan Component 38 | . . . 2 . . . . . . . 2 . 1 . 3 . 3 . . . . . . . 3 . 5 . 2 . 6 . 1 . 1 1 . . 8 . . . Repair 37 | . . . 2 . . . . . . . 2 . 1 . 3 . 3 . . . . . . . 3 . 5 . 2 . 5 . 1 . 1 1 . . 8 . . . Recycling Unit Hacks 17 | . . . . . . . . . . . 1 . . . . . 4 . 1 . . . . . 4 . . . 5 . . . . . . . . 2 . . . . Report Inventory 13 | . . . . . . . . . . . 1 . . . . . 3 . 1 . . . . . 3 . . . 3 . . . . . . . . 2 . . . . Retrieve Components 4 | . . . . . . . . . . . . . . . . . 1 . . . . . . . 1 . . . 2 . . . . . . . . . . . . . Scanalyzer 60 | . . . 2 . . . 10 . . . . . . . 9 . . . . . . . . . . . 8 . . . 12 . . . 8 3 . . . 8 . . Insert Component 29 | . . . 1 . . . 5 . . . . . . . 3 . . . . . . . . . . . 2 . . . 4 . . . 4 3 . . . 7 . . Analyze 31 | . . . 1 . . . 5 . . . . . . . 6 . . . . . . . . . . . 6 . . . 8 . . . 4 . . . . 1 . . Garrison Access Hacks 45 | . . . . . . . 1 . 1 . 2 . 3 . 3 . 5 . . . . . 2 . 4 . 3 . 2 . 4 . 4 . 3 2 . 2 . 1 3 . Unlock Access 16 | . . . . . . . 1 . 1 . 1 . 1 . 1 . 1 . . . . . 2 . 1 . 2 . 1 . 1 . 1 . . 1 . . . 1 . . Seal Access 15 | . . . . . . . . . . . . . 1 . 1 . 2 . . . . . . . 2 . 1 . . . 2 . 1 . 2 . . 1 . . 2 . Coupler Status 14 | . . . . . . . . . . . 1 . 1 . 1 . 2 . . . . . . . 1 . . . 1 . 1 . 2 . 1 1 . 1 . . 1 . Unauthorized Hacks 371 | . 5 . 9 . . . 6 . 7 1 16 . 9 . 17 . 31 3 16 2 . . 14 1 37 1 23 1 33 4 13 2 26 3 16 12 2 20 14 18 3 6 Terminals 206 | . 4 . 8 . . . 6 . 7 1 6 . 5 . 9 . 12 3 10 2 . . 10 1 15 1 7 1 12 4 4 2 14 3 10 9 2 10 9 13 . 6 Track 88 | . . . 1 . . . 1 . 1 . 2 . 2 . 2 . 5 2 4 . . . 5 1 6 1 2 . 5 2 3 1 7 2 6 6 1 6 5 6 . 3 Assimilate 25 | . 1 . 3 . . . . . 1 . . . . . 3 . 1 . 1 . . . 1 . 4 . 1 . 2 . . . 1 . . . . . 1 5 . . Botnet 65 | . 2 . 2 . . . 3 . 4 1 3 . 2 . 3 . 4 1 3 1 . . 3 . 4 . 3 1 4 2 1 1 4 1 3 2 1 2 2 1 . 1 Disrupt 2 | . . . . . . . . . . . . . . . . . . . . . . . . . . . . . . . . . 1 . . . . 1 . . . . Operators 26 | . 1 . 2 . . . 2 . 1 . 1 . 1 . 1 . 2 . 2 1 . . 1 . 1 . 1 . 1 . . . 1 . 1 1 . 1 1 1 . 2 Fabricators 87 | . . . . . . . . . . . 6 . 3 . 7 . 11 . 1 . . . . . 9 . 12 . 9 . 6 . 8 . 6 . . 3 3 . 3 . Report 13 | . . . . . . . . . . . 2 . 1 . 1 . 2 . . . . . . . 1 . 3 . 1 . 1 . . . 1 . . . . . . . Prioritize 26 | . . . . . . . . . . . 1 . . . 1 . 4 . . . . . . . 3 . 4 . 3 . 2 . 3 . 2 . . 1 1 . 1 . Liberate 31 | . . . . . . . . . . . 2 . 1 . 4 . 3 . . . . . . . 4 . 4 . 3 . 2 . 3 . 2 . . 1 1 . 1 . Haulers 17 | . . . . . . . . . . . 1 . 1 . 1 . 2 . 1 . . . . . 1 . 1 . 2 . 1 . 2 . 1 . . 1 1 . 1 . Repair Stations 6 | . . . . . . . . . . . 1 . . . 1 . 1 . . . . . . . 1 . 1 . . . . . . . . . . . 1 . . . Mechanics 6 | . . . . . . . . . . . 1 . . . 1 . 1 . . . . . . . 1 . 1 . . . . . . . . . . . 1 . . . Recycling Units 40 | . 1 . 1 . . . . . . . 1 . 1 . . . 7 . 5 . . . . . 8 . . . 9 . . . . . . . . 7 . . . . Monitor 5 | . . . . . . . . . . . . . . . . . . . . . . . . . 1 . . . 2 . . . . . . . . 2 . . . . Reject 15 | . . . . . . . . . . . 1 . 1 . . . 3 . 2 . . . . . 3 . . . 3 . . . . . . . . 2 . . . . Recyclers 5 | . . . . . . . . . . . . . . . . . 1 . 1 . . . . . 1 . . . 1 . . . . . . . . 1 . . . . Mask 13 | . . . . . . . . . . . . . . . . . 3 . 2 . . . . . 3 . . . 3 . . . . . . . . 2 . . . . Tunnel 2 | . 1 . 1 . . . . . . . . . . . . . . . . . . . . . . . . . . . . . . . . . . . . . . . Scanalyzers 3 | . . . . . . . . . . . . . . . . . . . . . . . . . . . . . . . . . . . . 1 . . 1 1 . . Researchers 3 | . . . . . . . . . . . . . . . . . . . . . . . . . . . . . . . . . . . . 1 . . 1 1 . . Garrison Access 29 | . . . . . . . . . . . 2 . . . . . . . . . . . 4 . 4 . 3 . 3 . 3 . 4 . . 2 . . . 4 . . Broadcast 6 | . . . . . . . . . . . . . . . . . . . . . . . 1 . 1 . . . 1 . 1 . 1 . . . . . . 1 . . Decoy 8 | . . . . . . . . . . . . . . . . . . . . . . . 2 . 1 . 1 . 1 . 1 . 1 . . . . . . 1 . . Reprogram 7 | . . . . . . . . . . . 1 . . . . . . . . . . . . . 1 . 1 . . . 1 . 1 . . 1 . . . 1 . . Watchers 8 | . . . . . . . . . . . 1 . . . . . . . . . . . 1 . 1 . 1 . 1 . . . 1 . . 1 . . . 1 . . Data Cores Recovered 7 | . 1 . . . . . . . . . . . . . . . . . 1 . . . 1 . . . . . . . 1 . 2 . . . . . . 1 . . Used 2 | . . . . . . . . . . . . . . . . . . . . . . . 1 . . . . . . . . . 1 . . . . . . . . . Hacking Detections 272 | . 8 1 12 1 . 1 8 4 8 4 9 1 13 3 25 2 19 2 10 3 1 . 16 2 16 1 14 2 12 3 9 3 13 2 9 5 1 6 8 9 2 4 Full Trace Events 33 | . 1 . 1 . . . . 1 . . 1 1 . . 2 . 5 . 2 . . . . . 3 . 4 1 2 . 1 . 4 . 2 . . 1 1 . . . Feedback Events . | . . . . . . . . . . . . . . . . . . . . . . . . . . . . . . . . . . . . . . . . . . . Feedback Blocked . | . . . . . . . . . . . . . . . . . . . . . . . . . . . . . . . . . . . . . . . . . . . Robot Schematics Acquired 23 | . . . . . . . 1 . . . 1 . . . . . 1 . . . . . . . 2 . . . 2 . . 1 2 . 2 4 . . 4 3 . . Robots Built 49 | . . . . . . . . . . . 5 . . . 2 . 6 . 5 . . . . . 4 . 9 . 5 . 2 . 6 . 2 . . 2 1 . . . Authchips 8 | . . . . . . . . . . . 2 . . . . . 1 . 2 . . . . . . . . . 2 . . . . . . . . 1 . . . . Time 1627 | . . . . . . . . . . . 201 . . . 67 . 243 . 268 . . . . . 140 . 164 . 210 . 42 . 119 . 34 . . 34 31 . 74 . Total Robot Build Rating 277 | . . . . . . . . . . . 20 . . . 8 . 25 . 20 . . . . . 24 . 51 . 30 . 12 . 48 . 16 . . 16 7 . . . Part Schematics Acquired 79 | . . . 2 1 . 2 4 . . . 1 . . . 5 . 3 . . . . . . . 5 . 7 . . 1 5 1 1 1 5 6 . 2 12 15 . . Parts Built 14 | . . . . . . . . . . . 2 . 1 . . . 2 . . . . . . . 3 . . . 2 . . . 2 . 1 . . 1 . . . . Authchips 3 | . . . . . . . . . . . . . . . . . . . . . . . . . 1 . . . 2 . . . . . . . . . . . . . Time 455 | . . . . . . . . . . . 42 . 53 . . . 58 . . . . . . . 82 . . . 106 . . . 42 . 38 . . 34 . . . . Total Part Build Rating 89 | . . . . . . . . . . . 8 . 6 . . . 14 . . . . . . . 20 . . . 12 . . . 16 . 5 . . 8 . . . . Parts Repaired 37 | . . . 2 . . . . . . . 2 . 1 . 3 . 3 . . . . . . . 3 . 5 . 2 . 5 . 1 . 1 1 . . 8 . . . Time 1545 | . . . 162 . . . . . . . 82 . 28 . 138 . 131 . . . . . . . 174 . 203 . 50 . 127 . 40 . 12 62 . . 336 . . . Parts Recycled . | . . . . . . . . . . . . . . . . . . . . . . . . . . . . . . . . . . . . . . . . . . . Recycled Matter . | . . . . . . . . . . . . . . . . . . . . . . . . . . . . . . . . . . . . . . . . . . . Retrieved Matter . | . . . . . . . . . . . . . . . . . . . . . . . . . . . . . . . . . . . . . . . . . . . Retrieved Components 20 | . . . . . . . . . . . . . . . . . 1 . . . . . . . 9 . . . 10 . . . . . . . . . . . . . Parts Scanalyzed 19 | . . . 1 . . . 4 . . . . . . . 3 . . . . . . . . . . . 2 . . . 4 . . . 4 . . . . 1 . . Part Schematics Acquired 19 | . . . 1 . . . 4 . . . . . . . 3 . . . . . . . . . . . 2 . . . 4 . . . 4 . . . . 1 . . Parts Damaged 4 | . . . 1 . . . . . . . . . . . . . . . . . . . . . . . 1 . . . 2 . . . . . . . . . . . Bothacking | -11 -10 -10 -9 -9 -9 -8 -8 -8 -8 -8 -7 -7 -7 -7 -7 -7 -6 -6 -6 -6 -6 -6 -6 -6 -5 -5 -5 -5 -4 -4 -4 -4 -3 -3 -3 -3 -3 -2 -2 -2 -1 -1 ------------ Run | Jun Mat Min Mat Min Exi Min Mat Gar Mat Gar Fac Gar Fac Gar Fac Gar Fac Gar Fac Ext Cet Arc Hub Gar Fac Gar Fac Gar Fac Gar Fac Gar Res Gar Res Qua Gar Res Tes Sec Acc Com Used RIF Installer 14 | . . . . . . . . 1 . 1 . 1 . 1 . 1 . 1 . . . . . 1 . 1 . 1 . 1 . 1 . 1 . . 2 . . . . . Coupler Efficiency 1 | . . . . . . . . . . . . 1 . . . . . . . . . . . . . . . . . . . . . . . . . . . . . . Command Fork 1 | . . . . . . . . . . . . . . . . . . . . . . . . . . . . . . . . . . . . . 1 . . . . . Threat Obfuscator 1 | . . . . . . . . . . . . . . . . . . . . . . . . . . . . . . 1 . . . . . . . . . . . . Signal Jammer 1 | . . . . . . . . . . . . . . . . . . . . . . . . . . . . 1 . . . . . . . . . . . . . . Zone Cloak 2 | . . . . . . . . . . . . . . . . 1 . . . . . . . . . . . . . . . . . 1 . . . . . . . . Robot Detection 1 | . . . . . . . . . . . . . . . . . . . . . . . . . . . . . . . . 1 . . . . . . . . . . Patrol Navigation 1 | . . . . . . . . . . . . . . . . . . 1 . . . . . . . . . . . . . . . . . . . . . . . . Structural Interface 1 | . . . . . . . . . . 1 . . . . . . . . . . . . . . . . . . . . . . . . . . . . . . . . Program Shield 1 | . . . . . . . . . . . . . . 1 . . . . . . . . . . . . . . . . . . . . . . . . . . . . Autooverride 1 | . . . . . . . . . . . . . . . . . . . . . . . . . . . . . . . . . . . . . 1 . . . . . Autoassimilate 1 | . . . . . . . . . . . . . . . . . . . . . . . . 1 . . . . . . . . . . . . . . . . . . Crosswire 1 | . . . . . . . . . . . . . . . . . . . . . . . . . . 1 . . . . . . . . . . . . . . . . Robots Hacked 510 | . . . . . 4 . . 1 5 4 8 . 6 15 7 22 16 8 14 5 1 1 6 8 59 13 36 13 23 4 22 22 34 18 16 9 23 6 21 36 12 12 Non-combat 122 | . . . . . 3 . . . 2 . 5 . . . 3 . 8 . 7 . . 1 2 . 26 . 11 . 13 . 6 . 9 . 7 3 . 2 5 6 3 . Combat 387 | . . . . . 1 . . 1 3 4 3 . 6 15 4 22 8 8 7 5 1 . 4 8 33 13 25 13 10 4 16 22 25 18 9 6 23 4 16 30 9 11 Autooverrided 20 | . . . . . . . . . . . . . . . . . . . . . . . . . . . . . . . . . . . . . . 1 4 7 3 5 Autoassimilated 61 | . . . . . . . . . . . . . . . . . . . . . . . . . 10 4 4 2 5 1 3 4 7 1 2 . 8 1 3 3 1 2 Robot Hacks Applied 500 | . . . . . 4 . . 1 5 4 9 . 6 15 13 24 23 8 18 5 1 3 7 8 58 9 41 14 23 4 19 20 31 17 20 12 16 4 16 29 9 4 parse_system 38 | . . . . . 4 . . 1 . . . . . 3 . 2 1 . . 1 1 . 1 . 4 . 1 . 1 1 2 2 4 . 1 2 2 . 2 1 1 . no_distress 1 | . . . . . . . . . . . . . . . . . . . . . . . . . . . . . . . . . . . . . . . . . 1 . find_chute 6 | . . . . . . . . . . . 1 . . . . . 1 . . . . . . . 3 . . . 1 . . . . . . . . . . . . . deconstruct_machine 4 | . . . . . . . . . . . . . . . 1 . . . . . . . . . . . 3 . . . . . . . . . . . . . . . ignore_repairs 38 | . . . . . . . . . . . . . . . . . . . 3 . . . 2 . 14 . 3 . 4 . . . 2 . 2 . . . 1 7 . . find_fabricator 1 | . . . . . . . . . . . . . . . . . 1 . . . . . . . . . . . . . . . . . . . . . . . . . drop_inventory 16 | . . . . . . . . . . . . . . . 1 . 2 . . . . . . . 1 . 2 . 3 . 1 . . . 2 . . 1 2 . 1 . recall_reinforcements 1 | . . . . . . . . . . . . . . . . . . . . . . . . . . . . . . . . . . . 1 . . . . . . . find_recycling 2 | . . . . . . . . . . . . . . . . . . . 1 . . . . . . . . . 1 . . . . . . . . . . . . . ignore_parts 23 | . . . . . . . . . . . 1 . . . . . 5 . 2 . . . . . 2 . 1 . 3 . 1 . 4 . . 2 . 1 . 1 . . find_station 1 | . . . . . . . . . . . . . . . . . . . . . . . . . 1 . . . . . . . . . . . . . . . . . purge_threat 30 | . . . . . . . . . . . 1 . . . 5 . 3 . 2 . . 2 . . 3 . 5 . 3 . . . 2 . 2 2 . . . . . . locate_traps 1 | . . . . . . . . . . . . . . . . . . . . . . . . . . . . . . . . . 1 . . . . . . . . . reprogram_traps 5 | . . . . . . . . . . . 1 . . . . . 1 . . . . . . . 1 . . . . . . . . . 1 1 . . . . . . block_reporting 4 | . . . . . . . . . . . . . . . 1 . . . 1 . . . . . . . 1 . . . . . . . 1 . . . . . . . map_route 1 | . . . . . . . . . . . 1 . . . . . . . . . . . . . . . . . . . . . . . . . . . . . . . disable_scanner 6 | . . . . . . . . . . . . . . . . . . . . . . . . . . . . . . . . . . . . 2 . . 1 3 . . locate_prototypes 1 | . . . . . . . . . . . . . . . . . . . . . . . . . . . . . . . . . . . . 1 . . . . . . emergency_deploy 1 | . . . . . . . . . . . . . . . . . . . . . . . . . . . . . . . . . . . 1 . . . . . . . reboot_propulsion 1 | . . . . . . . . . . . . . . . . . . . . . . . . . . . . 1 . . . . . . . . . . . . . . scatter_targeting 5 | . . . . . . . . . . . . . . . . 1 . 2 . . . . . 1 . 1 . . . . . . . . . . . . . . . . amplify_resonance 37 | . . . . . . . . . . 1 . . . 2 1 1 . . . . . . . . 4 1 5 1 . . 2 2 2 2 3 1 . . 1 4 2 2 disable_weapons 6 | . . . . . . . . . . . . . . . . . . . . . . . . . . . . . . . 1 . 1 . . . 3 . . 1 . . reboot_system 49 | . . . . . . . . . . . . . 3 1 . 4 1 . 1 2 . . 1 . 6 2 3 3 1 . 3 4 5 3 1 . 1 1 2 . 1 . overwrite_iff 83 | . . . . . . . . . . 1 2 . . 4 2 5 2 2 4 2 . . . 2 6 4 10 8 . 3 4 6 2 4 . . 8 1 . 1 . . formatsys_low 27 | . . . . . . . . . 2 . 1 . . . 1 . 1 . 2 . . 1 . . 5 . 3 . 2 . 1 . . . 2 . . . 3 2 1 . formatsys_high 112 | . . . . . . . . . 3 2 1 . 3 5 1 11 5 4 2 . . . 3 5 8 1 4 1 4 . 4 6 8 8 3 1 2 . 4 9 2 2 Manual 1 | . . . . . . . . . . . . . . . . . . . . . . . . . . . . . . . . . . . . . . . . . . 1 Relay Couplers Released 211 | . . . . . . . . 14 . 22 . 7 3 19 1 10 4 8 2 . . . 4 15 8 3 2 17 2 12 2 15 4 14 2 4 6 2 1 8 . . Machine Destruction 188 | . . . . . . . . 14 . 22 . 7 3 19 1 10 4 8 2 . . . . 15 5 3 2 17 2 8 2 15 4 14 2 . 6 2 1 . . . Programmers 23 | . . . . . . . . . . . . . . . . . . . . . . . 4 . 3 . . . . 4 . . . . . 4 . . . 8 . . Attached 125 | . . . . . . . . . 2 2 3 1 3 6 2 7 3 6 1 1 . 1 2 3 11 4 4 7 3 4 4 5 6 8 2 2 8 2 2 8 . 2 Crosswired 36 | . . . . . . . . . . . . . . . . . . . . . . . . . . 3 . 6 . 5 1 5 1 5 . 2 5 1 . 2 . . Fabnet Peak Effective % . | . . . . . . . . . . . . . . . . . . . . . . . . . . . . . . . . . . . . . . . . . . . Robots Rewired 39 | . . . . . . . . . . 5 . . . 7 . . . . . 6 . . . 6 . 2 . 3 1 . . . . . . . 9 . . . . . Allies Hacked 25 | . . . . . . . . 3 . . . 2 . . 1 . 2 1 . . . . . . 2 1 1 1 1 1 1 . 3 1 2 1 . . 1 . . . Hacks Repelled 8 | . . . . . . . . . . . 1 . . . . 1 . . . . . . . . . . . . . 3 . . . . 2 1 . . . . . . Allies | -11 -10 -10 -9 -9 -9 -8 -8 -8 -8 -8 -7 -7 -7 -7 -7 -7 -6 -6 -6 -6 -6 -6 -6 -6 -5 -5 -5 -5 -4 -4 -4 -4 -3 -3 -3 -3 -3 -2 -2 -2 -1 -1 -------- Run | Jun Mat Min Mat Min Exi Min Mat Gar Mat Gar Fac Gar Fac Gar Fac Gar Fac Gar Fac Ext Cet Arc Hub Gar Fac Gar Fac Gar Fac Gar Fac Gar Res Gar Res Qua Gar Res Tes Sec Acc Com Total Allies 490 | . . 4 2 . . . . 6 6 8 9 2 3 20 12 17 23 9 13 13 5 1 3 13 48 12 37 15 19 5 15 17 27 15 13 2 27 7 16 28 9 9 Largest Group 23 | . . 4 4 1 1 1 . 6 4 7 8 9 3 9 5 6 16 12 12 20 19 17 16 7 12 18 19 10 15 18 17 15 17 22 21 20 23 21 17 15 4 6 Highest-Rated Group 1276 | . . 71 71 9 9 9 . 255 75 131 224 240 80 382 191 114 518 428 471 791 1039 1014 874 258 729 966 1006 600 893 1103 986 770 966 1276 1168 1104 1066 1125 955 1250 576 946 Highest-Rated Ally 343 | . . 31 31 9 9 9 . 179 29 31 40 40 32 95 75 32 90 90 80 159 159 151 96 41 137 137 137 137 137 137 137 137 89 116 89 82 82 82 343 343 343 219 Total Orders 581 | . . . 1 6 . 1 . . 19 10 14 3 . 2 . 6 42 18 12 12 1 . 20 13 54 26 31 19 36 14 2 17 35 24 29 6 46 9 9 32 4 8 STAY 274 | . . . 1 4 . 1 . . 9 5 8 3 . 1 . 3 29 12 5 4 . . 13 7 22 14 12 7 16 6 . 5 16 8 12 1 19 3 4 15 2 7 ROAM 11 | . . . . . . . . . 1 . . . . . . . . 1 . 1 . . . . 1 1 . . . . . . . . . 1 2 2 . . 1 . FOLLOW 182 | . . . . 2 . . . . 7 5 2 . . 1 . 3 10 5 5 3 . . 7 6 14 10 11 7 13 5 . 5 5 9 8 2 17 3 3 13 . 1 AID 111 | . . . . . . . . . 2 . 4 . . . . . . . 2 4 1 . . . 17 1 8 5 7 3 2 7 14 7 9 2 8 1 2 4 1 . PICKUP 2 | . . . . . . . . . . . . . . . . . 2 . . . . . . . . . . . . . . . . . . . . . . . . . COLLECT 1 | . . . . . . . . . . . . . . . . . 1 . . . . . . . . . . . . . . . . . . . . . . . . . Ally Attacks 4236 | . . 19 23 . . . . 21 15 54 57 45 41 150 63 78 145 83 89 83 63 23 171 59 295 132 289 138 60 123 262 82 360 110 143 115 192 75 157 309 40 72 Total Damage 147102 | . . 204 230 . . . . 644 274 958 1376 1033 2098 3558 1425 1215 3993 1783 3109 2634 1699 800 5352 1655 10069 4560 10454 4378 2204 3775 10206 2650 11888 3452 5129 3644 6762 2736 5285 13451 1691 10728 Kills 907 | . . 4 3 . . . . 7 2 11 12 14 22 40 14 14 33 13 27 8 12 4 34 9 67 28 71 27 14 39 59 15 65 20 22 23 31 15 31 61 8 28 Allies Corrupted 28 | . . . . . . . . . . . . . . . . . . . . . . . 4 . 1 . 3 . . . . . 3 . 1 . 4 . 4 2 . 6 Allies Melted 4 | . . . . . . . . . . . . . . . . . . . . . . . . . 1 . . . . . 1 1 . . . . . . . 1 . . Intel | -11 -10 -10 -9 -9 -9 -8 -8 -8 -8 -8 -7 -7 -7 -7 -7 -7 -6 -6 -6 -6 -6 -6 -6 -6 -5 -5 -5 -5 -4 -4 -4 -4 -3 -3 -3 -3 -3 -2 -2 -2 -1 -1 ------- Run | Jun Mat Min Mat Min Exi Min Mat Gar Mat Gar Fac Gar Fac Gar Fac Gar Fac Gar Fac Ext Cet Arc Hub Gar Fac Gar Fac Gar Fac Gar Fac Gar Res Gar Res Qua Gar Res Tes Sec Acc Com Robot Analysis Total 14 | . . . 1 3 . . . . 2 . . . . . . . 1 . 1 . . . . . . . . . . . . . 3 . . 2 . . 1 . . . Derelict Logs Recovered 2 | . . 1 . 1 . . . . . . . . . . . . . . . . . . . . . . . . . . . . . . . . . . . . . . Drone Launches . | . . . . . . . . . . . . . . . . . . . . . . . . . . . . . . . . . . . . . . . . . . . Drone Recoveries . | . . . . . . . . . . . . . . . . . . . . . . . . . . . . . . . . . . . . . . . . . . . Exploration | -11 -10 -10 -9 -9 -9 -8 -8 -8 -8 -8 -7 -7 -7 -7 -7 -7 -6 -6 -6 -6 -6 -6 -6 -6 -5 -5 -5 -5 -4 -4 -4 -4 -3 -3 -3 -3 -3 -2 -2 -2 -1 -1 ------------- Run | Jun Mat Min Mat Min Exi Min Mat Gar Mat Gar Fac Gar Fac Gar Fac Gar Fac Gar Fac Ext Cet Arc Hub Gar Fac Gar Fac Gar Fac Gar Fac Gar Res Gar Res Qua Gar Res Tes Sec Acc Com Turns Passed 67599 | 45 756 642 1886 925 365 1140 1891 1353 2432 1232 1842 679 2206 1611 3235 1496 2560 1635 1457 1145 341 205 1949 1797 4521 954 2458 1212 2455 989 1666 1393 2698 1129 1578 1751 1724 836 2206 3050 882 1272 Spaces Moved 40648 | 35 612 577 1236 743 307 893 1047 738 1259 702 1103 316 1164 881 1852 762 1499 984 895 695 198 100 1161 954 2690 565 1400 691 1429 543 828 753 1800 764 1023 1197 1062 594 1319 2049 472 756 Core 1 | 1 . . . . . . . . . . . . . . . . . . . . . . . . . . . . . . . . . . . . . . . . . . Treads . | . . . . . . . . . . . . . . . . . . . . . . . . . . . . . . . . . . . . . . . . . . . Legs . | . . . . . . . . . . . . . . . . . . . . . . . . . . . . . . . . . . . . . . . . . . . Wheels 40562 | 34 612 577 1236 743 307 893 1047 738 1259 702 1103 316 1164 881 1852 762 1499 984 895 695 198 100 1161 954 2690 565 1400 691 1429 543 828 753 1800 764 1023 1197 1062 594 1319 2049 472 671 Hover . | . . . . . . . . . . . . . . . . . . . . . . . . . . . . . . . . . . . . . . . . . . . Flight . | . . . . . . . . . . . . . . . . . . . . . . . . . . . . . . . . . . . . . . . . . . . Fastest Speed 50 | 50 100 105 105 115 115 115 120 155 155 140 140 160 160 160 145 145 145 145 145 145 145 145 145 145 150 150 150 150 150 150 150 150 130 130 130 130 130 130 130 130 150 150 Average Speed 144 | 98 101 105 112 115 115 115 148 155 155 154 155 160 160 160 159 159 151 145 145 145 145 152 152 159 150 150 150 150 155 163 169 165 130 130 130 130 142 130 130 130 150 150 Slowest Speed 210 | 100 115 105 145 115 115 115 155 155 155 155 160 160 160 160 160 160 210 145 145 145 145 160 160 160 210 150 150 150 170 170 170 170 130 130 170 170 150 130 170 130 150 170 Overloaded Moves . | . . . . . . . . . . . . . . . . . . . . . . . . . . . . . . . . . . . . . . . . . . . Propulsion Burnouts . | . . . . . . . . . . . . . . . . . . . . . . . . . . . . . . . . . . . . . . . . . . . Robots Hopped 2 | . . . . . . . . . . . . . . . . . . 2 . . . . . . . . . . . . . . . . . . . . . . . . Cave-ins Triggered . | . . . . . . . . . . . . . . . . . . . . . . . . . . . . . . . . . . . . . . . . . . . Microwarps 5 | . . . . . . . . . . . . . . . . . . . . . . . . . . . . . . . . . . . . . . . . . . 5 Exploration Rate (%) 60 | 4 95 99 84 98 71 87 64 73 67 79 21 54 33 96 59 96 34 65 16 80 63 75 91 60 61 50 45 61 33 51 26 76 46 75 27 95 82 16 89 87 10 20 Regions Visited 42 Branch Regions 12 Pre-discovered Areas 3 | . 1 . 1 . 1 . . . . . . . . . . . . . . . . . . . . . . . . . . . . . . . . . . . . . Known Exits Taken 21 | . . . 1 . . . 1 . 1 . 1 . 1 . 1 . 1 . 1 1 1 1 1 . 1 . 1 . 1 . 1 . 1 . 1 1 . 1 . 1 . . Unknown Exits Taken 8 | 1 1 1 . 1 1 1 . . . . . . . . . . . . . . . . . . . . . . . . . . . . . . . . 1 . 1 . Scrap Searched 7 | . . 1 . 3 . 3 . . . . . . . . . . . . . . . . . . . . . . . . . . . . . . . . . . . . Spaces Dug 466 | . 6 . 51 15 . 27 4 28 11 2 . 72 4 . 32 . 10 1 6 . . . 28 1 48 . 18 . 10 . 4 . 8 . 10 8 5 6 8 26 4 13 Terrain Destroyed 905 | . 23 . 99 27 . 78 38 39 11 2 10 87 6 . 150 . 12 2 6 1 . . 28 13 75 1 31 . 10 . 5 5 17 1 12 11 7 6 13 37 16 26 Melee 65 | . . . 4 . . . 4 7 11 2 . . . . 2 . 5 1 6 . . . . 1 5 . . . 6 . . . 2 . . 2 . 6 1 . . . Projectile 244 | . . . . . . . . 1 . . 2 2 6 . 6 . 7 1 . 1 . . 13 2 39 1 22 . 4 . 5 5 15 1 12 9 7 . 12 37 16 18 AOE 595 | . 23 . 95 27 . 78 34 31 . . 8 84 . . 142 . . . . . . . 15 10 31 . 9 . . . . . . . . . . . . . . 8 Terrain Rammed . | . . . . . . . . . . . . . . . . . . . . . . . . . . . . . . . . . . . . . . . . . . . Walls Destroyed . | . . . . . . . . . . . . . . . . . . . . . . . . . . . . . . . . . . . . . . . . . . . Machines Disabled . | . . . . . . . . . . . . . . . . . . . . . . . . . . . . . . . . . . . . . . . . . . . Actions | -11 -10 -10 -9 -9 -9 -8 -8 -8 -8 -8 -7 -7 -7 -7 -7 -7 -6 -6 -6 -6 -6 -6 -6 -6 -5 -5 -5 -5 -4 -4 -4 -4 -3 -3 -3 -3 -3 -2 -2 -2 -1 -1 --------- Run | Jun Mat Min Mat Min Exi Min Mat Gar Mat Gar Fac Gar Fac Gar Fac Gar Fac Gar Fac Ext Cet Arc Hub Gar Fac Gar Fac Gar Fac Gar Fac Gar Res Gar Res Qua Gar Res Tes Sec Acc Com Total 47869 | 42 692 617 1563 805 320 957 1270 890 1648 824 1212 400 1467 1054 2027 951 1752 1140 1031 814 251 146 1310 1195 3074 662 1712 832 1633 634 1071 860 2079 891 1241 1350 1255 634 1746 2333 587 897 Wait 3164 | . 23 22 132 49 . 20 84 33 279 22 51 9 211 35 24 22 137 26 91 91 47 9 95 56 117 44 175 51 106 51 153 15 114 28 137 68 84 9 261 64 19 100 Move 40525 | 34 611 576 1235 742 306 892 1047 737 1258 701 1102 315 1164 880 1852 761 1498 979 894 694 197 99 1160 953 2689 564 1399 690 1428 542 827 752 1799 763 1022 1196 1061 593 1318 2048 471 676 Hop 2 | . . . . . . . . . . . . . . . . . . 2 . . . . . . . . . . . . . . . . . . . . . . . . Pick Up 439 | 2 15 7 23 3 3 3 18 11 6 18 10 4 11 10 14 17 13 22 3 1 1 7 4 31 31 8 11 9 12 6 6 7 10 14 3 7 12 3 12 23 6 2 Fast Attach 123 | 6 3 1 7 . . . 3 . 1 2 1 1 3 1 5 5 11 1 . . . 1 2 . 12 . 2 1 1 . 11 1 3 . 6 8 . . 17 5 1 1 Attach 197 | . . . 9 1 . 1 8 3 2 6 8 3 2 3 5 6 11 3 3 1 . 3 1 9 11 2 8 1 9 3 2 3 5 5 1 2 4 3 8 13 5 24 Detach 70 | . . . 2 . . . 3 1 1 2 2 1 1 2 2 1 3 2 . . . 2 1 2 2 1 1 1 3 3 3 1 2 2 . . 3 . 1 2 1 16 Swap 627 | . 6 3 36 5 3 10 24 17 25 9 15 6 21 11 35 31 13 21 6 2 2 8 11 34 41 11 18 18 15 7 11 14 41 7 8 6 14 4 13 26 9 10 Drop 374 | . 4 8 20 1 4 4 14 8 11 17 6 1 11 5 10 15 14 19 . . . 5 5 23 19 6 5 7 3 3 10 4 14 7 9 13 9 2 24 23 10 1 Fire 1738 | . 30 . 74 4 . 27 35 29 53 23 17 56 29 46 61 46 43 45 26 20 1 2 28 32 133 20 92 21 47 11 46 46 77 36 54 40 54 8 74 120 65 67 Melee 284 | . . . 25 . 4 . 33 9 11 8 . . 6 . 11 39 6 5 8 5 . 9 . 20 14 . . 11 7 . . 9 9 . . 9 . 12 14 . . . Ram 2 | . . . . . . . . . . . . . . . . . . . . . . . . . . . . . . . 1 . . . . 1 . . . . . . Kick . | . . . . . . . . . . . . . . . . . . . . . . . . . . . . . . . . . . . . . . . . . . . Crush . | . . . . . . . . . . . . . . . . . . . . . . . . . . . . . . . . . . . . . . . . . . . Escape Stasis 220 | . . . . . . . . 40 . 16 . 3 8 60 8 8 . . . . . . . 21 . . . 16 . 8 . 8 . 24 . . . . . . . . Rewire 53 | . . . . . . . . . 1 . . 1 . 1 . . . . . . . 1 1 4 4 . . 6 . . 1 . 5 5 1 . 14 . 4 4 . . Trap 51 | . . . . . . . 1 2 . . . . . . . . 3 15 . . 3 . 2 10 1 6 1 . 2 . . . . . . . . . . 5 . . Miscellaneous . | . . . . . . . . . . . . . . . . . . . . . . . . . . . . . . . . . . . . . . . . . . . Route ------- -11/Junkyard -10/Materials (discovered 4 exits: *Mat x3 / *Min) -10/Mines (discovered 2 exits: *Mat x2) -9/Materials (discovered 4 exits: *Mat x3 / *Min) -9/Mines (discovered 3 exits: *Mat x2 / *Exi) -9/Exiles -8/Mines (discovered 2 exits: *Mat x2) -8/Materials (discovered 4 exits: *Fac x2 / *Sto / Gar) -8/Garrison (discovered 3 exits: *Mat x3) -8/Materials (discovered 3 exits: *Fac x2 / Gar) -8/Garrison (discovered 3 exits: *Fac x3) -7/Factory (discovered 2 exits: *Low / Gar) -7/Garrison -7/Factory (discovered 3 exits: *Low x2 / Gar) -7/Garrison (discovered 4 exits: *Fac x3 / *Fac) -7/Factory (discovered 6 exits: *Fac x4 / *Low / Gar) -7/Garrison (discovered 3 exits: *Fac x3) -6/Factory (discovered 3 exits: *Fac / *Ext / Gar) -6/Garrison (discovered 3 exits: *Fac x3) -6/Factory (discovered 8 exits: *Fac x4 / *Low x2 / *Ext x2) -6/Extension (discovered 3 exits: *Fac x2 / *Cet) -6/Cetus -6/Archives (discovered 2 exits: *Hub x2) -6/Hub_04(d) (discovered 6 exits: *Fac x4 / Gar / Gar) -6/Garrison (discovered 3 exits: *Fac x3) -5/Factory (discovered 7 exits: *Fac x4 / *Upp x2 / Gar) -5/Garrison (discovered 3 exits: *Fac x3) -5/Factory (discovered 4 exits: *Fac / Upp x2 / Gar) -5/Garrison (discovered 3 exits: *Fac x3) -4/Factory (discovered 7 exits: Res x4 / *Upp x2 / Gar) -4/Garrison (discovered 4 exits: *Fac x4) -4/Factory (discovered 3 exits: *Res / *Upp / Gar) -4/Garrison (discovered 3 exits: *Res x3) -3/Research (discovered 7 exits: *Res x3 / Arm / Qua x2 / Gar) -3/Garrison (discovered 3 exits: *Res x3) -3/Research (discovered 6 exits: Res x3 / Arm / *Qua x2) -3/Quarantine (discovered 2 exits: *Res / Gar) -3/Garrison (discovered 3 exits: *Res x3) -2/Research (discovered 3 exits: *Acc / *Tes x2) -2/Testing (discovered 2 exits: *Acc / *Sec) -2/Section 7 (discovered 2 exits: *Acc / Gar) -1/Access -1/Command 0b10 Command History --------- Turn | Location | Event 24 | -11/Junkyard | Discovered new exit (range 16) 46 | -11/Junkyard | Entered Materials 157 | -10/Materials | Discovered new exit (range 5) 218 | -10/Materials | Discovered new exit (range 3) 316 | -10/Materials | Build established: Mutant 639 | -10/Materials | Discovered new exit (range 11) 682 | -10/Materials | Discovered new exit (range 14) 802 | -10/Materials | Entered Mines 823 | -10/Mines | Received a Rocket Launcher from a helpful Derelict 896 | -10/Mines | Discovered new exit (range 13) 909 | -10/Mines | Assisted by bots powering up and referring to "LRC-V3" 981 | -10/Mines | Found a damaged Exp. Sensor Array with a note attached 984 | -10/Mines | Found Prototype Device 1213 | -10/Mines | Received a Mining Laser from a helpful Derelict 1241 | -10/Mines | Learned Materials emergency access door positions 1293 | -10/Mines | Discovered new exit (range 9) 1309 | -10/Mines | Met a Derelict shopkeep closing up shop 1444 | -10/Mines | Entered Materials 1444 | -9/Materials | Accompanied by 4 allies 1444 | -9/Materials | Evolved 2 slots: Utility x2 1458 | -9/Materials | Identified Exp. Sensor Array 1618 | -9/Materials | Repaired Broken Exp. Sensor Array? 1861 | -9/Materials | Discovered new exit (range 15) 2048 | -9/Materials | Repaired Lgt. Armor Plating 2171 | -9/Materials | Discovered new exit (range 16) 2484 | -9/Materials | Discovered new exit (range 13) 2705 | -9/Materials | Identified exit to Mines 2900 | -9/Materials | Build established: Hacker-Mutant 2941 | -9/Materials | Discovered new exit (range 3) 2991 | -9/Materials | Central database locked down 3330 | -9/Materials | Entered Mines 3330 | -9/Mines | Accompanied by 1 ally 3363 | -9/Mines | Assembled infested the area 3368 | -9/Mines | Assisted by a Guerilla fighting off Assembled 3628 | -9/Mines | Build established: Mutant 3686 | -9/Mines | Discovered new exit (range 13) 3973 | -9/Mines | Discovered new exit (range 7) 4036 | -9/Mines | A weapon hastily lodged in a ceiling crevice suddenly fell to the ground 4250 | -9/Mines | Deemed a non-threat by the Exiles lab entrance 4250 | -9/Mines | Discovered new exit (range 5) 4255 | -9/Mines | Entered Exiles 4255 | -9/Exiles | Accompanied by 1 ally 4283 | -9/Exiles | Met 8R-AWN 4305 | -9/Exiles | Met EX-HEX 4370 | -9/Exiles | Met EX-DEC 4403 | -9/Exiles | Learned location of Zion (-6) 4422 | -9/Exiles | Met EX-BIN 4440 | -9/Exiles | Aligned with FarCom system 4441 | -9/Exiles | Given EX-Vault access code 4472 | -9/Exiles | Opened EX-Vault 4481 | -9/Exiles | Found PSU Rigger 4484 | -9/Exiles | Found Gui. Plasma Cannon 4489 | -9/Exiles | Found Longsword +1 4515 | -9/Exiles | Warned to stay clear of 0b10 Research branches 4611 | -9/Exiles | Discovered new exit (range 10) 4620 | -9/Exiles | Stole three prototypes: PSU Rigger, Gui. Plasma Cannon, Longsword +1 4620 | -9/Exiles | Entered Mines 4620 | -8/Mines | Accompanied by 1 ally 4779 | -8/Mines | Discovered new exit (range 14) 4963 | -8/Mines | Discovered new exit (range 15) 5200 | -8/Mines | Core integrity fell below 50% 5760 | -8/Mines | Entered Materials 5760 | -8/Materials | Evolved 2 slots: Utility x2 5761 | -8/Materials | Identified exit to Storage 5863 | -8/Materials | Garrison activated, responded to threat 5919 | -8/Materials | Lost 4 parts (1n2u1w) 5961 | -8/Materials | Destroyed 8 combat bots 6058 | -8/Materials | Discovered new exit (range 6) 6504 | -8/Materials | Build established: Hacker-Mutant 7170 | -8/Materials | Discovered new exit (range 7) 7651 | -8/Materials | Identified exit to Garrison 7651 | -8/Materials | Entered Garrison 7722 | -8/Garrison | Triggered checkpoint 7760 | -8/Garrison | Garrison Relay disabled 7860 | -8/Garrison | Triggered checkpoint 8226 | -8/Garrison | Rescued AZ-K3N 8409 | -8/Garrison | AZ-K3N assimilated hostile Y-45 Defender 8414 | -8/Garrison | Discovered new exit (range 15) 8594 | -8/Garrison | Triggered checkpoint 8640 | -8/Garrison | Discovered new exit (range 59) 8640 | -8/Garrison | Discovered new exit (range 26) 8640 | -8/Garrison | Discovered new exit (range 56) 8652 | -8/Garrison | Garrison Relay disabled 8689 | -8/Garrison | Rescued a captive Derelict 8690 | -8/Garrison | Rescued a captive Derelict 8854 | -8/Garrison | Triggered checkpoint 8860 | -8/Garrison | AZ-K3N assimilated hostile S-10 Pest 8901 | -8/Garrison | Installed Relay Interface Framework 8920 | -8/Garrison | Garrison Relay disabled 9004 | -8/Garrison | Entered Materials 9004 | -8/Materials | Accompanied by 2 allies 9220 | -8/Materials | Build established: Bothacker-Mutant 9287 | -8/Materials | Discovered new exit (range 3) 10836 | -8/Materials | Discovered new exit (range 3) 11076 | -8/Materials | Build established: Hacker-Mutant 11151 | -8/Materials | Identified exit to Garrison 11436 | -8/Materials | Entered Garrison 11436 | -8/Garrison | Accompanied by 1 ally 11480 | -8/Garrison | Triggered checkpoint 11516 | -8/Garrison | Triggered checkpoint 11535 | -8/Garrison | Garrison Relay disabled 11573 | -8/Garrison | Expanded RIF knowledge: Structural Interface 11842 | -8/Garrison | Triggered checkpoint 11866 | -8/Garrison | Triggered checkpoint 11880 | -8/Garrison | Build established: Commander-Mutant 11882 | -8/Garrison | Garrison Relay disabled 11914 | -8/Garrison | Triggered checkpoint 12045 | -8/Garrison | Learned Factory security intel 12134 | -8/Garrison | Discovered new exit (range 16) 12134 | -8/Garrison | Discovered new exit (range 68) 12134 | -8/Garrison | Discovered new exit (range 79) 12178 | -8/Garrison | Triggered checkpoint 12212 | -8/Garrison | Garrison Relay disabled 12229 | -8/Garrison | Garrison Relay disabled 12528 | -8/Garrison | Triggered checkpoint 12540 | -8/Garrison | Build established: Bothacker-Mutant 12555 | -8/Garrison | Garrison Relay disabled 12668 | -8/Garrison | Entered Factory 12668 | -7/Factory | Accompanied by 4 allies 12668 | -7/Factory | Evolved 2 slots: Utility x2 12670 | -7/Factory | FarCom data flow suspended 12852 | -7/Factory | Repaired Imp. Utility Shielding? 12939 | -7/Factory | Discovered new exit (range 5) 12953 | -7/Factory | Repaired Rnf. Deuterium Engine? 12968 | -7/Factory | Build established: Hacker-Mutant 13254 | -7/Factory | Fabricated P-60 Hacker (x2) 13415 | -7/Factory | Fabricated I-36 Angel (x1) 13543 | -7/Factory | P-60 Hacker assimilated allied P1-0R7(b) 13544 | -7/Factory | Build established: Commander-Mutant 13651 | -7/Factory | Fabricated P-60 Hacker (x2) 14100 | -7/Factory | Fabricated Arm. Huge Wheel (x2) 14467 | -7/Factory | Identified exit to Garrison 14510 | -7/Factory | Entered Garrison 14510 | -7/Garrison | Accompanied by 8 allies 14572 | -7/Garrison | Triggered checkpoint 14574 | -7/Garrison | Assembled breached garrison interior 14582 | -7/Garrison | Hacker 4d assimilated hostile G-47 Trooper 14612 | -7/Garrison | Garrison Relay disabled 14646 | -7/Garrison | Expanded RIF knowledge: Coupler Efficiency 14863 | -7/Garrison | Heavy support dispatched to Factory 14867 | -7/Garrison | Build established: Hacker-Mutant 14964 | -7/Garrison | Destroyed 33 combat bots 14981 | -7/Garrison | Heavy support dispatched to Factory 15031 | -7/Garrison | Discovered new exit (range 12) 15071 | -7/Garrison | Garrison Relay disabled 15189 | -7/Garrison | Entered Factory 15282 | -7/Factory | Garrison activated, responded to threat 15359 | -7/Factory | Build established: Bothacker-Mutant 15432 | -7/Factory | Found Rocket Array 15882 | -7/Factory | Discovered new exit (range 14) 16107 | -7/Factory | Repaired Lyr. Heavy Armor Plating 16334 | -7/Factory | Fabricated Lrn. Proton Cannon (x1) 17082 | -7/Factory | Discovered new exit (range 8) 17092 | -7/Factory | Identified exit to Lower Caves 17395 | -7/Factory | Identified exit to Garrison 17395 | -7/Factory | Entered Garrison 17438 | -7/Garrison | Triggered checkpoint 17474 | -7/Garrison | Triggered checkpoint 17485 | -7/Garrison | Garrison Relay disabled 17596 | -7/Garrison | Found embedded Infiltrators 17714 | -7/Garrison | Triggered checkpoint 17739 | -7/Garrison | Discovered new exit (range 3) 17805 | -7/Garrison | Expanded RIF knowledge: Program Shield 17831 | -7/Garrison | Garrison Relay disabled 17908 | -7/Garrison | Triggered checkpoint 18015 | -7/Garrison | Garrison Relay disabled 18078 | -7/Garrison | Discovered new exit (range 15) 18119 | -7/Garrison | Rescued a captive Derelict 18120 | -7/Garrison | Rescued a captive Derelict 18229 | -7/Garrison | Triggered checkpoint 18281 | -7/Garrison | Discovered new exit (range 10) 18324 | -7/Garrison | Triggered checkpoint 18328 | -7/Garrison | Triggered checkpoint 18355 | -7/Garrison | Garrison Relay disabled 18557 | -7/Garrison | Triggered checkpoint 18610 | -7/Garrison | Triggered checkpoint 18678 | -7/Garrison | Discovered new exit (range 15) 18698 | -7/Garrison | Triggered checkpoint 18778 | -7/Garrison | Discovered new exit (range 11) 18778 | -7/Garrison | Discovered new exit (range 69) 18778 | -7/Garrison | Discovered new exit (range 94) 18778 | -7/Garrison | Discovered new exit (range 56) 19006 | -7/Garrison | Entered Factory 19006 | -7/Factory | Accompanied by 3 allies 19259 | -7/Factory | Build established: Botlord-Mutant 19406 | -7/Factory | First assault squad dispatched 19464 | -7/Factory | Fabricated P-60 Hacker (x2) 19613 | -7/Factory | Build established: Bothacker-Mutant 19728 | -7/Factory | Discovered new exit (range 13) 19831 | -7/Factory | Discovered new exit (range 5) 20631 | -7/Factory | Noticed a derelict Sapper rigging charges 21007 | -7/Factory | Repaired Imp. Utility Shielding? 21099 | -7/Factory | Repaired Lyr. Heavy Armor Plating 21347 | -7/Factory | Destroyed 7 combat bots 21411 | -7/Factory | Discovered exit to Lower Caves (range 9) 21639 | -7/Factory | Identified exit to Factory 22197 | -7/Factory | Repaired Arm. Huge Wheel 22241 | -7/Factory | Identified exit to Garrison 22241 | -7/Factory | Entered Garrison 22241 | -7/Garrison | Accompanied by 1 ally 22297 | -7/Garrison | Core integrity fell below 50% 22330 | -7/Garrison | Triggered checkpoint 22501 | -7/Garrison | Rescued a captive Derelict 22502 | -7/Garrison | Rescued a captive Derelict 22674 | -7/Garrison | Triggered checkpoint 22688 | -7/Garrison | Triggered checkpoint 22711 | -7/Garrison | Build established: Botlord-Mutant 22922 | -7/Garrison | Triggered checkpoint 23030 | -7/Garrison | Expanded RIF knowledge: Zone Cloak 23053 | -7/Garrison | Garrison Relay disabled 23097 | -7/Garrison | Discovered exit to Factory (range 10) 23253 | -7/Garrison | Garrison Relay disabled 23322 | -7/Garrison | Discovered exit to Factory (range 11) 23434 | -7/Garrison | Triggered checkpoint 23517 | -7/Garrison | Discovered exit to Factory (range 3) 23623 | -7/Garrison | Triggered checkpoint 23654 | -7/Garrison | Garrison Relay disabled 23737 | -7/Garrison | Entered Factory 23737 | -6/Factory | Accompanied by 4 allies 23737 | -6/Factory | Evolved 2 slots: Utility x2 24266 | -6/Factory | Garrison activated, responded to threat 24336 | -6/Factory | Allied Derelicts emerged from ambush trap array 24519 | -6/Factory | Discovered new exit (range 16) 24546 | -6/Factory | Repaired Imp. Utility Shielding? 24813 | -6/Factory | Repaired Adv. Phase Shifter 25067 | -6/Factory | Fabricated P-60 Hacker (x2) 25185 | -6/Factory | Fabricated A-15 Conveyor (x1) 25508 | -6/Factory | Discovered new exit (range 5) 25605 | -6/Factory | Repaired Adv. Plasma Cannon? 25767 | -6/Factory | Fabricated I-36 Angel (x1) 26045 | -6/Factory | Hacker 5a assimilated hostile W-25 Informer 26070 | -6/Factory | Fabricated Centrium Wheel (x2) 26262 | -6/Factory | Fabricated P-60 Hacker (x2) 26287 | -6/Factory | Identified exit to Garrison 26297 | -6/Factory | Entered Garrison 26297 | -6/Garrison | Accompanied by 12 allies 26408 | -6/Garrison | Hacker 5d assimilated hostile H-66 Slayer 26420 | -6/Garrison | Triggered checkpoint 26422 | -6/Garrison | Triggered checkpoint 26891 | -6/Garrison | Discovered new exit (range 54) 26891 | -6/Garrison | Discovered new exit (range 39) 26891 | -6/Garrison | Discovered new exit (range 26) 26922 | -6/Garrison | Build established: Bothacker-Mutant 26929 | -6/Garrison | Expanded RIF knowledge: Patrol Navigation 27084 | -6/Garrison | Garrison Relay disabled 27228 | -6/Garrison | Build established: Botlord-Mutant 27243 | -6/Garrison | Triggered checkpoint 27397 | -6/Garrison | Garrison Relay disabled 27512 | -6/Garrison | Triggered checkpoint 27760 | -6/Garrison | Found embedded Infiltrators 27932 | -6/Garrison | Entered Factory 27932 | -6/Factory | Accompanied by 5 allies 28357 | -6/Factory | Identified exit to Factory 28357 | -6/Factory | Identified exit to Lower Caves 28357 | -6/Factory | Identified exit to Extension 28368 | -6/Factory | Fabricated P-60 Hacker (x2) 28445 | -6/Factory | Fabricated I-36 Angel (x1) 29051 | -6/Factory | Fabricated P-60 Hacker? 29224 | -6/Factory | Garrison activated, responded to threat 29389 | -6/Factory | Entered Extension 29389 | -6/Extension | Accompanied by 10 allies 29510 | -6/Extension | Rescued A7 29939 | -6/Extension | Spotted B-75 Beast 29946 | -6/Extension | Spotted B-75 Beast 29964 | -6/Extension | Door terminal overloaded 29964 | -6/Extension | Discovered exit to Factory (range 13) 29964 | -6/Extension | Allies destroyed B-75 Beast 30065 | -6/Extension | Rescued a captive Derelict 30232 | -6/Extension | Rescued a captive Derelict 30290 | -6/Extension | Rescued a captive Derelict 30290 | -6/Extension | Rescued a captive Derelict 30494 | -6/Extension | Discovered new exit (range 15) 30495 | -6/Extension | Discovered exit to Factory (range 15) 30514 | -6/Extension | Identified exit to Cetus 30534 | -6/Extension | Entered Cetus 30534 | -6/Cetus | Accompanied by 19 allies (A7) 30539 | -6/Cetus | Acquired a Cetus Manufacturing Module code from A7 30548 | -6/Cetus | Spotted Cetus Guard 30549 | -6/Cetus | Spotted Cetus Guard 30549 | -6/Cetus | Spotted Cetus Guard 30550 | -6/Cetus | Allies destroyed Cetus Guard 30550 | -6/Cetus | Spotted Cetus Guard 30556 | -6/Cetus | Allies destroyed Cetus Guard 30570 | -6/Cetus | Allies destroyed Cetus Guard 30572 | -6/Cetus | Allies destroyed Cetus Guard 30654 | -6/Cetus | Started Cetus Manufacturing Module 30664 | -6/Cetus | Escorted A7 to Cetus Mainframe 30679 | -6/Cetus | Manufactured an Enhanced Grunt 30686 | -6/Cetus | Discovered new exit (range 16) 30704 | -6/Cetus | Manufactured an Enhanced Grunt 30729 | -6/Cetus | Manufactured an Enhanced Grunt 30754 | -6/Cetus | Manufactured an Enhanced Grunt 30779 | -6/Cetus | Manufactured an Enhanced Grunt 30870 | -6/Cetus | Identified exit to Archives 30875 | -6/Cetus | Entered Archives 30875 | -6/Archives | Accompanied by 17 allies (A7) 30880 | -6/Archives | Received a hacking code to weaken MAIN.C 30948 | -6/Archives | Discovered new exit (range 16) 30973 | -6/Archives | Discovered new exit (range 16) 31075 | -6/Archives | Identified exit to Hub_04(d) 31080 | -6/Archives | Entered Hub_04(d) 31080 | -6/Hub_04(d) | Accompanied by 16 allies 31508 | -6/Hub_04(d) | Discovered exit to Factory (range 11) 31508 | -6/Hub_04(d) | Discovered exit to Factory (range 19) 31967 | -6/Hub_04(d) | Discovered exit to Factory (range 11) 32044 | -6/Hub_04(d) | Identified exit to Garrison 32541 | -6/Hub_04(d) | Discovered exit to Factory (range 6) 32568 | -6/Hub_04(d) | Identified exit to Garrison 32583 | -6/Hub_04(d) | Garrison activated, responded to threat 32830 | -6/Hub_04(d) | Network Hub disabled 32875 | -6/Hub_04(d) | Network Hub disabled 33029 | -6/Hub_04(d) | Entered Garrison 33029 | -6/Garrison | Accompanied by 2 allies 33152 | -6/Garrison | Triggered checkpoint 33153 | -6/Garrison | Garrison Relay disabled 33304 | -6/Garrison | Triggered checkpoint 33308 | -6/Garrison | Core integrity fell below 50% 33328 | -6/Garrison | Destroyed 8 combat bots 33416 | -6/Garrison | Triggered checkpoint 33482 | -6/Garrison | Triggered checkpoint 33488 | -6/Garrison | Discovered exit to Factory (range 32) 33488 | -6/Garrison | Discovered exit to Factory (range 65) 33488 | -6/Garrison | Discovered exit to Factory (range 25) 33493 | -6/Garrison | Garrison Relay disabled 33606 | -6/Garrison | Learned Factory security intel 33748 | -6/Garrison | Expanded RIF knowledge: Autoassimilate 34707 | -6/Garrison | Garrison Relay disabled 34742 | -6/Garrison | Triggered checkpoint 34763 | -6/Garrison | Garrison Relay disabled 34826 | -6/Garrison | Entered Factory 34826 | -5/Factory | Accompanied by 7 allies 34826 | -5/Factory | Evolved 2 slots: Utility x2 35389 | -5/Factory | Repaired F-cell Engine? 35482 | -5/Factory | Repaired Adv. Plasma Cannon? 35572 | -5/Factory | Repaired Imp. Utility Shielding? 35726 | -5/Factory | Discovered new exit (range 6) 35795 | -5/Factory | Discovered new exit (range 4) 36042 | -5/Factory | Central database locked down 36042 | -5/Factory | Identified exit to Factory 36486 | -5/Factory | Fabricated P-70 Sage (x2) 36608 | -5/Factory | Discovered new exit (range 15) 36883 | -5/Factory | P-70 Sage assimilated allied Sentinel 6c 36885 | -5/Factory | P-70 Sage assimilated allied Administrator 6a 36888 | -5/Factory | P-70 Sage assimilated allied Angel 5b 37535 | -5/Factory | Identified exit to Upper Caves 37572 | -5/Factory | Cargo convoy interrupted 37994 | -5/Factory | Fabricated P-70 Sage (x2) 38331 | -5/Factory | Sage 6d assimilated hostile Y-64 Sentinel 38431 | -5/Factory | Fabricated Adv. Hacking Suite (x1) 38437 | -5/Factory | Sage 6c assimilated hostile G-50 Soldier 38674 | -5/Factory | Found System Purifier 38677 | -5/Factory | Found Prototype Launcher 38678 | -5/Factory | Identified Tactical Quantum Warhead 38701 | -5/Factory | Found Prototype Processor 38711 | -5/Factory | Identified Exp. Melee Analysis Suite 38721 | -5/Factory | Found Exp. Melee Analysis Suite 38796 | -5/Factory | Fabricated Centrium Wheel (x2) 39299 | -5/Factory | Identified exit to Garrison 39326 | -5/Factory | First assault squad dispatched 39347 | -5/Factory | Entered Garrison 39347 | -5/Garrison | Accompanied by 12 allies 39434 | -5/Garrison | Triggered checkpoint 39484 | -5/Garrison | Garrison Relay disabled 39566 | -5/Garrison | Spotted B-75 Beast 39572 | -5/Garrison | Triggered checkpoint 39572 | -5/Garrison | Triggered checkpoint 39589 | -5/Garrison | P-70 Sage assimilated hostile S-27 Virus 39605 | -5/Garrison | Triggered checkpoint 39662 | -5/Garrison | Discovered new exit (range 34) 39662 | -5/Garrison | Discovered new exit (range 44) 39662 | -5/Garrison | Discovered new exit (range 54) 39992 | -5/Garrison | Expanded RIF knowledge: Crosswire 40301 | -5/Garrison | Entered Factory 40301 | -5/Factory | Accompanied by 14 allies 40619 | -5/Factory | Repaired Centrium Wheel 40652 | -5/Factory | Repaired Centrium Wheel 40693 | -5/Factory | Repaired F-cell Engine? 40794 | -5/Factory | Repaired Broken Adv. Remote Datajack? 40872 | -5/Factory | Repaired Centrium Medium Armor Plating 40901 | -5/Factory | First assault squad dispatched 40909 | -5/Factory | Sage 6d assimilated hostile L-41 Fighter 40921 | -5/Factory | Discovered exit to Factory (range 21) 41623 | -5/Factory | Spotted B-75 Beast 41755 | -5/Factory | Found Imp. Powered Armor 41913 | -5/Factory | Garrison activated, responded to threat 41924 | -5/Factory | Fabricated P-70 Sage (x2) 41996 | -5/Factory | Identified exit to Garrison 42351 | -5/Factory | Fabricated P-70 Sage (x2) 42384 | -5/Factory | Fabricated P-70 Sage (x2) 42549 | -5/Factory | Fabricated G-50 Soldier (x3) 42751 | -5/Factory | Identified exit to Garrison 42759 | -5/Factory | Entered Garrison 42759 | -5/Garrison | Accompanied by 9 allies 42823 | -5/Garrison | Triggered checkpoint 42826 | -5/Garrison | Triggered checkpoint 42900 | -5/Garrison | Triggered checkpoint 42983 | -5/Garrison | Garrison Relay disabled 43107 | -5/Garrison | Triggered checkpoint 43160 | -5/Garrison | Discovered exit to Factory (range 32) 43160 | -5/Garrison | Discovered exit to Factory (range 30) 43160 | -5/Garrison | Discovered exit to Factory (range 34) 43166 | -5/Garrison | Triggered checkpoint 43352 | -5/Garrison | Triggered checkpoint 43407 | -5/Garrison | Garrison Relay disabled 43450 | -5/Garrison | Expanded RIF knowledge: Signal Jamming 43760 | -5/Garrison | Triggered checkpoint 43796 | -5/Garrison | Discovered exit to Factory (range 72) 43796 | -5/Garrison | Discovered exit to Factory (range 15) 43796 | -5/Garrison | Discovered exit to Factory (range 48) 43804 | -5/Garrison | Triggered checkpoint 43870 | -5/Garrison | Garrison Relay disabled 43908 | -5/Garrison | Garrison Relay disabled 43971 | -5/Garrison | Entered Factory 43971 | -4/Factory | Accompanied by 7 allies 43971 | -4/Factory | Evolved 2 slots: Utility x2 44079 | -4/Factory | Identified exit to Research 44221 | -4/Factory | First assault squad dispatched 44562 | -4/Factory | Spotted B-86 Titan 44765 | -4/Factory | Spotted B-86 Titan 44784 | -4/Factory | Allies destroyed B-86 Titan 45042 | -4/Factory | Fabricated P-70 Sage (x2) 45099 | -4/Factory | Discovered new exit (range 21) 45202 | -4/Factory | Cargo convoy interrupted 45221 | -4/Factory | Sage 7b assimilated hostile H-77 Assassin 45518 | -4/Factory | Identified exit to Upper Caves 45819 | -4/Factory | Fabricated I-47 Archangel (x1) 45932 | -4/Factory | Identified exit to Garrison 45939 | -4/Factory | Fabricated Adv. Hacking Suite (x1) 46035 | -4/Factory | Fabricated Adv. Hacking Suite (x1) 46188 | -4/Factory | Fabricated P-70 Sage (x2) 46265 | -4/Factory | Repaired Centrium Medium Armor Plating 46280 | -4/Factory | Repaired Hrd. Heavy Armor Plating 46426 | -4/Factory | Entered Garrison 46426 | -4/Garrison | Accompanied by 15 allies 46460 | -4/Garrison | Triggered checkpoint 46479 | -4/Garrison | Discovered new exit (range 3) 46537 | -4/Garrison | Learned Factory security intel 46537 | -4/Garrison | Discovered new exit (range 49) 46537 | -4/Garrison | Discovered new exit (range 43) 46537 | -4/Garrison | Discovered new exit (range 55) 46537 | -4/Garrison | Discovered new exit (range 19) 46584 | -4/Garrison | Triggered checkpoint 46587 | -4/Garrison | Spotted B-86 Titan 46600 | -4/Garrison | Triggered checkpoint 46652 | -4/Garrison | Triggered checkpoint 46745 | -4/Garrison | Expanded RIF knowledge: Threat Obfuscation 46916 | -4/Garrison | Triggered checkpoint 46917 | -4/Garrison | Sage 7c assimilated hostile S-27 Virus 47016 | -4/Garrison | Found Relay Coupler [Proto] 47068 | -4/Garrison | Triggered checkpoint 47097 | -4/Garrison | Garrison Relay disabled 47252 | -4/Garrison | Triggered checkpoint 47301 | -4/Garrison | Garrison Relay disabled 47415 | -4/Garrison | Entered Factory 47415 | -4/Factory | Accompanied by 15 allies 47532 | -4/Factory | Repaired Adv. Remote Datajack 47545 | -4/Factory | Repaired Imp. Utility Shielding 47583 | -4/Factory | Repaired Helical Railgun 47604 | -4/Factory | Repaired Imp. Cloaking Device 47642 | -4/Factory | Repaired Broken Neutron Cannon 47703 | -4/Factory | Garrison activated, responded to threat 48285 | -4/Factory | Discovered exit to Research (range 18) 48415 | -4/Factory | First assault squad dispatched 48429 | -4/Factory | Fabricated P-70 Sage (x2) 48434 | -4/Factory | Sage 7f assimilated hostile G-67 Veteran 48543 | -4/Factory | Discovered exit to Upper Caves (range 6) 48952 | -4/Factory | Spotted B-86 Titan 48966 | -4/Factory | Cargo convoy interrupted 48970 | -4/Factory | Identified exit to Garrison 48979 | -4/Factory | Allies destroyed B-86 Titan 49023 | -4/Factory | Found Prototype Device 49023 | -4/Factory | Identified Exp. Transmission Jammer 49026 | -4/Factory | Found Prototype Device 49026 | -4/Factory | Identified Exp. Actuator Array 49030 | -4/Factory | Found Prototype Device 49030 | -4/Factory | Identified Exp. Thermal Shield 49040 | -4/Factory | Found Prototype Device 49040 | -4/Factory | Identified Beam Splitter 49081 | -4/Factory | Entered Garrison 49081 | -4/Garrison | Accompanied by 9 allies 49111 | -4/Garrison | Discovered exit to Research (range 58) 49111 | -4/Garrison | Discovered exit to Research (range 67) 49111 | -4/Garrison | Discovered exit to Research (range 50) 49111 | -4/Garrison | Learned Research security intel 49111 | -4/Garrison | Garrison Relay disabled 49226 | -4/Garrison | Triggered checkpoint 49228 | -4/Garrison | Triggered checkpoint 49231 | -4/Garrison | Spotted B-86 Titan 49232 | -4/Garrison | Autoassimilated Titan 7a with RIF 49236 | -4/Garrison | Triggered checkpoint 49244 | -4/Garrison | Triggered checkpoint 49478 | -4/Garrison | Triggered checkpoint 49588 | -4/Garrison | Garrison Relay disabled 49656 | -4/Garrison | Triggered checkpoint 49710 | -4/Garrison | Expanded RIF knowledge: Robot Detection 49862 | -4/Garrison | Rescued a captive Derelict 50127 | -4/Garrison | Triggered checkpoint 50161 | -4/Garrison | Garrison Relay disabled 50179 | -4/Garrison | Learned Research security intel 50338 | -4/Garrison | Triggered checkpoint 50392 | -4/Garrison | Garrison Relay disabled 50474 | -4/Garrison | Entered Research 50474 | -3/Research | Accompanied by 14 allies 50474 | -3/Research | Evolved 2 slots: Propulsion x1, Utility x1 50697 | -3/Research | Identified exit to Armory 50697 | -3/Research | Identified exit to Quarantine 50961 | -3/Research | Fabricated Linear Accelerator (x2) 50999 | -3/Research | Fabricated P-80 Master? 51393 | -3/Research | Found Antimissile System 51458 | -3/Research | Repaired F-cell Engine 51461 | -3/Research | Fabricated P-80 Master (x2) 51487 | -3/Research | Master 8c assimilated hostile G-67 Veteran 51724 | -3/Research | First assault squad dispatched 52112 | -3/Research | Garrison activated, responded to threat 52256 | -3/Research | Discovered new exit (range 21) 52540 | -3/Research | Discovered new exit (range 19) 52645 | -3/Research | Identified exit to Research 52847 | -3/Research | Fabricated P-80 Master? 53147 | -3/Research | Identified exit to Garrison 53172 | -3/Research | Entered Garrison 53172 | -3/Garrison | Accompanied by 14 allies 53224 | -3/Garrison | Garrison Relay disabled 53236 | -3/Garrison | Triggered checkpoint 53259 | -3/Garrison | Rescued a captive Derelict 53450 | -3/Garrison | Spotted B-86 Titan 53456 | -3/Garrison | Triggered checkpoint 53458 | -3/Garrison | Triggered checkpoint 53465 | -3/Garrison | Triggered checkpoint 53468 | -3/Garrison | Allies destroyed B-86 Titan 53602 | -3/Garrison | Triggered checkpoint 53612 | -3/Garrison | Learned Research security intel 53612 | -3/Garrison | Discovered new exit (range 12) 53612 | -3/Garrison | Discovered new exit (range 43) 53612 | -3/Garrison | Discovered new exit (range 66) 53692 | -3/Garrison | Triggered checkpoint 53703 | -3/Garrison | Garrison Relay disabled 53871 | -3/Garrison | Expanded RIF knowledge: Zone Cloak 53922 | -3/Garrison | Garrison Relay disabled 54062 | -3/Garrison | Garrison Relay disabled 54163 | -3/Garrison | Spotted B-86 Titan 54192 | -3/Garrison | Found Relay Coupler [Proto] 54194 | -3/Garrison | Found Relay Coupler [Proto] 54197 | -3/Garrison | Found Relay Coupler [Proto] 54201 | -3/Garrison | Found Relay Coupler [Proto] 54301 | -3/Garrison | Entered Research 54301 | -3/Research | Accompanied by 19 allies 54466 | -3/Research | Spotted B-86 Titan 54565 | -3/Research | Spotted B-86 Titan 54576 | -3/Research | Destroyed B-86 Titan 54655 | -3/Research | Repaired Imp. Utility Shielding 54762 | -3/Research | Master 8e assimilated hostile G-73 Enforcer 54969 | -3/Research | Fabricated Exp. Utility Shielding (x1) 55169 | -3/Research | Found Prototype Device 55169 | -3/Research | Identified Exp. Shield Generator 55286 | -3/Research | Fabricated P-80 Master (x2) 55806 | -3/Research | Master 8h assimilated hostile S-43 Plague 55879 | -3/Research | Entered Quarantine 55879 | -3/Quarantine | Accompanied by 19 allies 55899 | -3/Quarantine | Found Alien Artifact 55908 | -3/Quarantine | Found Alien Artifact 55908 | -3/Quarantine | Identified Dimensional Node Initializer 55908 | -3/Quarantine | Initialized slip node 56011 | -3/Quarantine | Master 8e assimilated hostile S-43 Plague 56076 | -3/Quarantine | Found Alien Artifact 56093 | -3/Quarantine | Identified Core Reset Matrix 56093 | -3/Quarantine | Identified Hpw. Transdimensional Reconstructor 56185 | -3/Quarantine | Discovered exit to Research (range 11) 56232 | -3/Quarantine | Found Antimissile System 56384 | -3/Quarantine | Spotted Alpha 7 56397 | -3/Quarantine | Allies destroyed Alpha 7 56479 | -3/Quarantine | Found Alien Slashing Weapon 56711 | -3/Quarantine | Repaired Imp. Remote Shield 57000 | -3/Quarantine | Identified Sigix Broadsword 57027 | -3/Quarantine | Found Spectral Analyzer 57473 | -3/Quarantine | Identified exit to Garrison 57630 | -3/Quarantine | Entered Garrison 57630 | -3/Garrison | Accompanied by 19 allies 57659 | -3/Garrison | Garrison Relay disabled 57749 | -3/Garrison | Triggered checkpoint 57758 | -3/Garrison | Spotted B-86 Titan 57782 | -3/Garrison | Allies destroyed B-86 Titan 57788 | -3/Garrison | Triggered checkpoint 57812 | -3/Garrison | Triggered checkpoint 57866 | -3/Garrison | Triggered checkpoint 57962 | -3/Garrison | Discovered exit to Research (range 42) 57962 | -3/Garrison | Discovered exit to Research (range 53) 57962 | -3/Garrison | Discovered exit to Research (range 58) 57962 | -3/Garrison | Learned Research security intel 58150 | -3/Garrison | Triggered checkpoint 58310 | -3/Garrison | Expanded RIF knowledge: Command Fork 58611 | -3/Garrison | Garrison Relay disabled 58870 | -3/Garrison | Spotted B-86 Titan 58911 | -3/Garrison | Allies destroyed B-86 Titan 59050 | -3/Garrison | Expanded RIF knowledge: Autooverride 59354 | -3/Garrison | Entered Research 59354 | -2/Research | Accompanied by 16 allies 59354 | -2/Research | Evolved 2 slots: Utility x1, Weapon x1 59449 | -2/Research | Identified exit to Testing 59591 | -2/Research | Discovered new exit (range 14) 59593 | -2/Research | Fabricated P-80 Master? 59683 | -2/Research | Fabricated Hdn. Centrium Wheel? 60190 | -2/Research | Entered Testing 60190 | -2/Testing | Accompanied by 15 allies 60251 | -2/Testing | Repaired Centrium Medium Armor Plating? 60276 | -2/Testing | Repaired Exp. Utility Shielding? 60311 | -2/Testing | Repaired System Purifier? 60403 | -2/Testing | Found Prototype Device 60403 | -2/Testing | Identified Exp. Hardlight Generator 60516 | -2/Testing | Found SHELL Armor 60612 | -2/Testing | Fabricated M-36 Artificer? 60999 | -2/Testing | P-80 Master assimilated allied Director 9a 61011 | -2/Testing | Garrison activated, responded to threat 61044 | -2/Testing | Discovered new exit (range 18) 61155 | -2/Testing | Spotted Alpha 7 61196 | -2/Testing | System corruption reached 10% 61209 | -2/Testing | Assimilated Alpha 7 with formatsys_high 61236 | -2/Testing | Lost 3 parts (1p1u1w) 61291 | -2/Testing | Scanned by Researcher 61362 | -2/Testing | Found Prototype Energy Cannon 61539 | -2/Testing | Repaired Centrium Wheel? 61601 | -2/Testing | Repaired System Purifier 61656 | -2/Testing | Repaired Centrium Medium Armor Plating 61711 | -2/Testing | Repaired Hdn. Centrium Wheel 61744 | -2/Testing | Repaired Centrium Wheel 61846 | -2/Testing | Found Exp. System Shield 61879 | -2/Testing | Found Prototype Energy Gun 61879 | -2/Testing | Identified Warp Gun 61979 | -2/Testing | Found Prototype Hackware 61979 | -2/Testing | Identified System Mapper 61985 | -2/Testing | Spotted Striker 62008 | -2/Testing | Found Prototype Device 62008 | -2/Testing | Identified Exp. Force Field 62211 | -2/Testing | Spotted Fortress 62225 | -2/Testing | Assimilated Fortress with formatsys_high 62338 | -2/Testing | Discovered new exit (range 6) 62396 | -2/Testing | Entered Section 7 62396 | -2/Section 7 | Accompanied by 3 allies 62471 | -2/Section 7 | Found Alien Artifact 62473 | -2/Section 7 | Identified Disintegrator 62542 | -2/Section 7 | Identified Integrity Redistributor 62689 | -2/Section 7 | Identified exit to Access 62875 | -2/Section 7 | Spotted B-90 Cyclops 62956 | -2/Section 7 | Assimilated Cyclops 9a with formatsys_high 62968 | -2/Section 7 | Spotted S7 Guard 63004 | -2/Section 7 | Destroyed S7 Guard 63093 | -2/Section 7 | Found Alien Artifact 63135 | -2/Section 7 | Identified Core Membrane 63135 | -2/Section 7 | Installed Core Membrane, gained immunity to corruption 63197 | -2/Section 7 | Found Multirail 63251 | -2/Section 7 | Spotted S7 Guard 63375 | -2/Section 7 | Found Alien Artifact 63396 | -2/Section 7 | First assault squad dispatched 63412 | -2/Section 7 | Allies destroyed Cyclops 9a 63474 | -2/Section 7 | Identified Integrated Thermoelectric Network 63474 | -2/Section 7 | Installed Integrated Thermoelectric Network, gained heat-energy exchange potential 63629 | -2/Section 7 | Found Integrity Redistributor 63736 | -2/Section 7 | Spotted S7 Guard 63773 | -2/Section 7 | Found Alien Artifact 63824 | -2/Section 7 | Found Alien Artifact 64110 | -2/Section 7 | Identified Core Physics Calibrator 64110 | -2/Section 7 | Identified Microwarp Drive 64215 | -2/Section 7 | Found Alien Artifact 64350 | -2/Section 7 | Identified exit to Garrison 64465 | -2/Section 7 | Identified Integrated Dissipator 64465 | -2/Section 7 | Installed Integrated Dissipator, increased core heat dissipation (+20) 64656 | -2/Section 7 | Spotted Executioner 64656 | -2/Section 7 | Spotted Executioner 64673 | -2/Section 7 | Allies destroyed Executioner 64680 | -2/Section 7 | Allies destroyed Executioner 64743 | -2/Section 7 | Found Alien Artifact 64828 | -2/Section 7 | Spotted Executioner 64833 | -2/Section 7 | Spotted Executioner 64845 | -2/Section 7 | Assimilated Executioner with formatsys_high 64845 | -2/Section 7 | Assimilated Executioner with formatsys_high 64909 | -2/Section 7 | Spotted B-99 Colossus 64962 | -2/Section 7 | Destroyed B-99 Colossus 65114 | -2/Section 7 | Found Alien Artifact 65114 | -2/Section 7 | Identified LRC Energy Well 65114 | -2/Section 7 | Installed LRC Energy Well, increased energy storage capacity (+250) 65221 | -2/Section 7 | Spotted Alpha 7 65267 | -2/Section 7 | Spotted Alpha 7 65281 | -2/Section 7 | Found Multirail 65297 | -2/Section 7 | Destroyed Alpha 7 65307 | -2/Section 7 | Found Exp. Core Analyzer 65315 | -2/Section 7 | Found Multirail 65327 | -2/Section 7 | Found Exp. Targeting Computer 65446 | -2/Section 7 | Entered Access 65446 | -1/Access | Accompanied by 2 allies 65446 | -1/Access | Evolved 2 slots: Power x1, Utility x1 66252 | -1/Access | Spotted B-99 Colossus 66252 | -1/Access | Spotted B-99 Colossus 66258 | -1/Access | Assimilated Colossus 10a with formatsys_high 66258 | -1/Access | Assimilated Colossus 10b with formatsys_high 66310 | -1/Access | Discovered new exit (range 2) 66328 | -1/Access | Entered Command 66328 | -1/Command | Accompanied by 3 allies 67022 | -1/Command | Spotted M Guard 67023 | -1/Command | Spotted Combat Programmer 67023 | -1/Command | Spotted M Guard 67025 | -1/Command | Spotted Combat Programmer 67043 | -1/Command | Allies destroyed Combat Programmer 67052 | -1/Command | Allies destroyed Combat Programmer 67062 | -1/Command | Assimilated M Guard with formatsys_high 67064 | -1/Command | Assimilated M Guard with formatsys_high 67346 | -1/Command | Met MAIN.C 67346 | -1/Command | Hacked MAIN.C using A7's code 67512 | -1/Command | Allies destroyed MAIN.C Shell 67513 | -1/Command | MAIN.C activated Command garrisons 67542 | -1/Command | Used Integrity Redistributor, redistributed integrity from core (-189) 67547 | -1/Command | All MAIN.C guards destroyed 67561 | -1/Command | Used Integrity Redistributor, redistributed integrity from core (-214) 67562 | -1/Command | Core integrity fell below 50% 67600 | -1/Command | Interfaced with 0b10 Conduit 67600 | *** | Assimilated 0b10! Last Messages --------------- 67593_ Penetrated by Slug. 67593_ SHELL Armor destroyed. 67594_ Slug penetrates Reinforced Barrier. 67594_ Knocked back. 67594_ Penetrated by Slug. 67595_ Destroyed Hvy. Machine Gun. 67595_ H-88 Terminator destroyed. 67595_ X-87 Electro destroyed. 67595_ C-57 Dissector destroyed. 67595_ Slug penetrates Reinforced Barrier. 67596_ Slug penetrates H-88 Terminator. 67597_ Slug penetrates P-80 Master. 67597_ Knocked back. 67598_ Acquired 1 matter. 67598_ Microwarped (distance 6). 67599_ Microwarped (distance 26). 67600_ Interfacing with system... 67600_ Overriding active MAIN.C lock. 67600_ Microwarped (distance 8). [Achievement: Mad Max] Map ----- +----------------------------------------------------+ | ## ""####################################### | | ## ""####################################### | | # ""####################################### | | + ""####################################### | | # T"####################################### | | # ""####################################### | | # ""####################################### | | # ""####################################### | | # ""####################################### | | # "####################################### | | # ######################################### | | # ######################################### | | ################################################# | | ##### ########################################### | | ##### #######""""""" """" ############### | | ## #######"" "" ############### | | ## #######""""" "" ############### | | ## #######""""""""""" / | | ##########" " """ / | | # #####"" """""" /p g bggs b | | # #####"" """""" ############### | | # ##### " """""" ############### | | # ##### " "" ############### | | # ##### " " ""############### | | + #####""""""""" """""""############### | | ## #####"" @"""""""""############### | | ## ##### """""""""""############### | | ## ##### " " " " ############### | | ####+###### " " " " ############### | | """ " " " """" " ############### | | """ """ " " """" ############### | | """ " " " " ############### | | ##+# ##### """""""""" " ############### | | # ##### " """ " """"""""############### | | # ##### """ " " " ############### | | # ######################################### | | # ######################################### | | " # ######################################### | | " # ######################################### | | " # ######################################### | | " # ######################################### | | " # ######################################### | | " # ######################################### | | " # ######################################### | | # ######################################### | | # ######################################### | | #### ######################################### | | #### ######################################### | | #### ######################################### | | #### ######################################### | +----------------------------------------------------+ Best States ------------- Heat Dissipation 87 Coolant Potential 100 Energy Generation 61 Energy Capacity 850 Matter Stores 300 Matter Capacity 300 Sight Range 24 Robot Scan Range 20 Terrain Scan Range 20 Terrain Scan Density 10 Cloak Strength 3 Power Amplification 40 Armor Coverage 1125 Resistance: TH 75 Utility Shielding 90 Point Defense Rating 240 Weapon Cycling 30 Phase Shifting 15 Evasion (%) 55 Targeting Accuracy 12 Core Analysis 8 Matter Filtering 50 Kinecelleration 40 Offensive Hacking 62 Defensive Hacking 20 Relay Coupler Types 10 Relay Coupler Value 199 Authchip Count 4 Trap Extractor Capacity 6 Item Schematics ----------------- Exp. Sensor Array | -9/Materials | Scanalyzed Huge Storage Unit | -9/Materials | Hacked Hcp. Storage Unit | -9/Mines | Hacked Arm. Wheel | -8/Mines | Hacked Hacking Suite | -8/Mines | Hacked Imp. Utility Shielding | -8/Materials | Scanalyzed Hrd. Heavy Armor Plating | -8/Materials | Scanalyzed Remote Datajack | -8/Materials | Scanalyzed Adv. Targeting Computer | -8/Materials | Scanalyzed Arm. Huge Wheel | -7/Factory | Hacked Adv. Phase Shifter | -7/Factory | Scanalyzed Lyr. Heavy Armor Plating | -7/Factory | Scanalyzed Mak. Axe | -7/Factory | Scanalyzed Adv. System Restoration Module | -7/Factory | Hacked Cld. Particle Cannon | -7/Factory | Hacked Centrium Wheel | -6/Factory | Hacked Imp. Hacking Suite | -6/Factory | Hacked Imp. System Shield | -6/Factory | Hacked Adv. Hacking Suite | -5/Factory | Hacked Imp. Component Analysis Suite | -5/Factory | Hacked Cld. Plasma Rifle | -5/Factory | Hacked Adv. System Shield | -5/Factory | Hacked Point Defense System | -5/Factory | Hacked Quantum Capacitor | -5/Factory | Hacked Adv. Remote Datajack | -5/Factory | Scanalyzed Exp. Melee Analysis Suite | -5/Factory | Scanalyzed Exp. Utility Shielding | -5/Factory | Hacked Exp. Targeting Computer | -5/Factory | Hacked Antimissile System | -5/Factory | Hacked Enh. Force Lance | -5/Factory | Hacked Exp. Hacking Suite | -4/Garrison | Hacked Centrium Medium Armor Plating | -4/Factory | Scanalyzed System Purifier | -4/Factory | Scanalyzed Imp. Cloaking Device | -4/Factory | Scanalyzed Helical Railgun | -4/Factory | Scanalyzed Exp. System Shield | -4/Factory | Hacked Exp. Optical Array | -4/Garrison | Hacked Enh. Nova Cannon | -3/Research | Hacked Hdn. Centrium Wheel | -3/Garrison | Hacked Exp. Coolant Injector | -3/Research | Scanalyzed Exp. Power Amplifier | -3/Research | Scanalyzed Prc. Matter Filter | -3/Research | Scanalyzed Gravity Flail | -3/Research | Scanalyzed Adv. Cloaking Device | -3/Research | Hacked Imp. Quantum Reactor | -3/Quarantine | Hacked Diametric Drive | -3/Quarantine | Archive Proton Burst Cannon | -3/Quarantine | Archive Coolant Network | -3/Quarantine | Archive Gravity Neutralizer | -3/Quarantine | Archive Exp. Heat Sink | -3/Quarantine | Archive Centrium Heavy Armor Plating | -2/Research | Hacked Exp. EM Disruption Field | -2/Research | Hacked Beam Splitter | -2/Testing | Archive Thermal Barrier | -2/Testing | Archive Singularity Reactor | -2/Testing | Archive Cld. Field Propulsion Drive | -2/Testing | Archive Lgt. Regenerative Plating | -2/Testing | Hacked Hvy. Regenerative Plating | -2/Testing | Hacked Adv. Gravity Neutralizer | -2/Testing | Archive Cld. Gravmag System | -2/Testing | Archive Adv. Kinecellerator | -2/Testing | Archive Com. Mass Driver | -2/Testing | Archive Exp. Q-thruster | -2/Testing | Archive Cld. Nuclear Pulse Thruster | -2/Testing | Archive Prc. Energy Filter | -2/Section 7 | Scanalyzed Adv. Plasma Rifle | -2/Section 7 | Archive Thunder Hammer | -2/Section 7 | Archive Electron Diverter | -2/Section 7 | Archive Exp. Thermal Defense Suite | -2/Section 7 | Archive Cld. Phase Cannon | -2/Section 7 | Archive Exp. Shock Absorption System | -2/Section 7 | Archive Exp. ECM Suite | -2/Section 7 | Archive Exp. Myomer Leg | -2/Section 7 | Archive Exp. Biometal Heavy Treads | -2/Section 7 | Archive Imp. Q-thruster | -2/Section 7 | Archive Adv. Thermal Defense Suite | -2/Section 7 | Archive Com. Tesla Bomb Launcher | -2/Section 7 | Archive Enh. Armored Medium Treads | -2/Section 7 | Archive Hvy. Proton Cannon | -2/Section 7 | Archive Robot Schematics ------------------ P-60 Hacker | -8/Materials | Hacked H-55 Commando | -7/Factory | Hacked I-36 Angel | -6/Factory | Hacked P-70 Sage | -5/Factory | Hacked L-41 Fighter | -5/Factory | Hacked Y-64 Sentinel | -4/Factory | Hacked I-47 Archangel | -4/Factory | Hacked P-80 Master | -4/Garrison | Hacked H-77 Assassin | -3/Research | Hacked H-88 Terminator | -3/Research | Hacked B-60 Warrior | -3/Research | Hacked A-27 Freighter | -3/Research | Hacked T-07 Excavator | -3/Quarantine | Archive K-01 Serf | -3/Quarantine | Archive A-15 Conveyor | -3/Quarantine | Archive Y-72 Warden | -3/Quarantine | Hacked E-15 Imp | -2/Testing | Archive L-61 Swordsman | -2/Testing | Hacked M-36 Artificer | -2/Testing | Hacked G-73 Enforcer | -2/Testing | Archive R-06 Scavenger | -2/Section 7 | Archive R-10 Processor | -2/Section 7 | Archive C-65 Expert | -2/Section 7 | Archive Fabricated ------------ P-60 Hacker | x2 | -7/Factory | Authchip I-36 Angel | x1 | -7/Factory | Preloaded P-60 Hacker | x2 | -7/Factory | Authchip Arm. Huge Wheel | x2 | -7/Factory Lrn. Proton Cannon | x1 | -7/Factory | Preloaded P-60 Hacker | x2 | -7/Factory P-60 Hacker | x2 | -6/Factory | Authchip A-15 Conveyor | x1 | -6/Factory | Preloaded I-36 Angel | x1 | -6/Factory Centrium Wheel | x2 | -6/Factory P-60 Hacker | x2 | -6/Factory P-60 Hacker | x2 | -6/Factory | Authchip I-36 Angel | x1 | -6/Factory | Authchip P-60 Hacker | x2 | -6/Factory P-70 Sage | x2 | -5/Factory P-70 Sage | x2 | -5/Factory Adv. Hacking Suite | x1 | -5/Factory Centrium Wheel | x2 | -5/Factory | Authchip P-70 Sage | x2 | -5/Factory P-70 Sage | x2 | -5/Factory P-70 Sage | x2 | -5/Factory G-50 Soldier | x3 | -5/Factory | Preloaded P-70 Sage | x2 | -4/Factory | Authchip I-47 Archangel | x1 | -4/Factory | Authchip Adv. Hacking Suite | x1 | -4/Factory | Authchip Adv. Hacking Suite | x1 | -4/Factory | Authchip P-70 Sage | x2 | -4/Factory P-70 Sage | x2 | -4/Factory Linear Accelerator | x2 | -3/Research | Preloaded P-80 Master | x2 | -3/Research P-80 Master | x2 | -3/Research P-80 Master | x2 | -3/Research Exp. Utility Shielding | x1 | -3/Research P-80 Master | x2 | -3/Research P-80 Master | x2 | -2/Research | Authchip Hdn. Centrium Wheel | x1 | -2/Research M-36 Artificer | x1 | -2/Testing Alien Tech Used ----------------- Dimensional Node Initializer Sigix Broadsword Core Membrane Integrated Thermoelectric Network Integrated Dissipator LRC Energy Well Microwarp Drive Integrity Redistributor Achievements -------------- Mad Max Challenges ------------ None Game ------ Seed ImpactMissileGun Manual? 0 Play Time 16:34:31 Cumulative 629.1 hours Start 2023.04.14 @ 14:48:32 End 2023.04.16 @ 16:04:46 Sessions 13 Manual Loads 0 Difficulty Rogue Special Mode None Game No. 134 Rogue 134 Adventurer 0 Explorer 0 Win Type 4 Total 35 Types 21/3/5/1/2/0/2/1/0 Lore% 92 Gallery% 95 Achievement% 87 Wizard Run 0 Options --------- ASCII 0 Keyboard 0 Movement Numpad Keybinds 0 Fullscreen 1 Font 14/SmallcapsGlow Map View 84x54 Tactical HUD 1 Map Filters NONE Filters NONE Steam 1 RUN: a86f2d96-d9c0-4c71-bd11-85e7f24c6bfd